{"text_format":"1","workbook":"xlsx","n_sheets":24,"sheets":["Cover Page","Contents","Facility Info","Operational Data","Operational Summary","Perf. Form 1","Energy Form 1","Permit Compliance","Improvements","Public Liaison","Air (periodic)","CO2 N2O","Residue Quality ","Water","Air (CEMS)","HCl","SO2","NOx","TOC","Particulates","CO 0.5 hourly","CO 95% 10 min","NH3","Template changes log"],"not_rendered":{"charts":8,"images":1,"macros":1,"external_links":0,"defined_names":24,"comments":0,"pivot_tables":0},"unopened":[],"bounds":{"document_bytes":16777216,"sheet_cells":100000,"rows_first":2000,"rows_last":500,"rows_between":2000,"halvings":0,"cell_chars":16384,"cell_head_chars":4096},"cells_cut":0,"cells_raw":0,"read":"whole","date_system":"1900"}

{"sheet":"Cover Page","index":0,"n_rows":53,"n_cols":14,"rows_kept":53,"cut":false,"hidden":false,"merged":[[13,13,18,15],[34,1,34,8],[0,3,5,6],[7,1,23,8],[28,1,28,8],[30,1,30,8],[32,1,32,8],[48,2,48,3],[48,6,48,8],[52,2,52,3],[36,1,36,8],[40,2,40,8],[42,2,42,4],[44,2,44,4],[46,2,46,3],[46,6,46,8]]}
[null,null,null,"Add company logo"]
[null,null,null,null,null,null,null,null,null,null,null,null,null,"Version 24.2b (for co-incinerators) - 27/11/24"]
[]
[null,null,null,null,null,null,null,null,null,null,null,null,null,"Note that there is another version of this template available for incinerators"]
[]
[]
[]
[null,"Add photo"]
[]
[]
[]
[]
[null,null,null,null,null,null,null,null,null,null,null,null,null,"Notes:"]
[null,null,null,null,null,null,null,null,null,null,null,null,null,"This template may require adjustments by individual operators to meet specific reporting requirements as defined in the site Permit(s)"]
[]
[]
[]
[]
[]
[]
[]
[]
[]
[]
[]
[]
[]
[]
[null,"Annual Performance Report 2024"]
[]
[null,"Permit EPR/XP3030XX"]
[]
[null,"Enviropower Ltd"]
[]
[null,"other name of facility (if applicable)"]
[]
[null,"Enviropower Ltd"]
[]
[null,"Year:",2024]
[]
[null,"Address:","Unit 7 Marlborough Business Centre, 24 Marlborough Road, Lancing Business Park, Lancing, West Sussex, BN15 8TP"]
[]
[null,"Tel: ","01903 768239"]
[]
[null,"Email: ","joe@enviropowerltd.co.uk"]
[]
[null,"Prepared by:","Joe Timms",null,null,"Position:","Operations Director"]
[]
[null,"Approved by:","Joe Timms",null,null,"Position:","Operations Director"]
[]
[null,"Version:",1]
[]
[null,"Issue Date:","20th January 2025"]

{"sheet":"Contents","index":1,"n_rows":45,"n_cols":11,"rows_kept":45,"cut":false,"hidden":false,"merged":[[4,10,7,14],[8,1,8,6],[3,1,3,6],[4,1,4,6],[5,1,5,6],[6,1,6,6],[7,1,7,6],[21,1,21,6],[9,1,9,6],[10,1,10,6],[11,1,11,6],[13,1,13,6],[14,1,14,6],[15,1,15,6],[16,1,16,6],[17,1,17,6],[18,1,18,6],[19,1,19,6],[20,1,20,6],[12,1,12,6],[36,1,36,6],[22,1,22,6],[23,1,23,6],[24,1,24,6],[27,1,27,6],[28,1,28,6],[29,1,29,6],[30,1,30,6],[31,1,31,6],[32,1,32,6],[35,1,35,6],[44,0,47,9],[37,1,37,6],[38,1,38,6],[39,1,39,6],[40,1,40,6],[41,1,41,6],[42,1,42,6]]}
[{"$f":"+'Cover Page'!$B$29","v":"Annual Performance Report 2024"},null,null,null,{"$f":"+'Cover Page'!$B$33","v":"Enviropower Ltd"}]
[]
["Contents",null,null,null,null,null,null,null,null,null,"Notes:"]
["Section","Subject",null,null,null,null,null,"Page ",null,null,"Section references and Page nos. to be inserted"]
[null,"Facility Information",null,null,null,null,null,null,null,null,"Sections and Subjects may require adjustment by individual operators to meet specific reporting requirements as defined in the sites Permit(s)"]
[null,"Operational Data"]
[null,"Operational Summary"]
[null,"Performance Form 1"]
[null,"Energy Form 1"]
[null,"Permit Compliance"]
[null,"Improvements"]
[null,"Public Liaison"]
[null,"Carbon dioxide and nitrous oxide emissions"]
[null,"Residue Quality "]
[null,"Emissions to Water"]
[null,"Emissions to Air (periodically monitored)"]
[null,"Emissions to Air (continuously monitored)"]
[null,"Hydrogen Chloride emissions"]
[null,"Sulphur Dioxide emissions"]
[null,"Oxides of Nitrogen emissions"]
[null,"Total Organic Carbon emissions"]
[null,"Particulate Matter emissions"]
[null,"Carbon Monoxide emissions"]
[null,"Ammonia emissions"]
[]
[]
["Version Control"]
["Section","Information",null,null,null,null,null,"Date"]
[]
[]
[]
[]
[]
[]
["Distribution"]
["Copy","Name, Role",null,null,null,null,null,"No."]
[]
[]
[]
[]
[]
[]
[]
[]
["This report is required under the Industrial Emissions Directive’s Article 55(2) requirements on reporting and public information on waste incineration plants and co-incineration plants, which require the operator to produce an annual report on the functioning and monitoring of the plant and make it available to the public. "]

{"sheet":"Facility Info","index":2,"n_rows":22,"n_cols":11,"rows_kept":22,"cut":false,"hidden":false,"merged":[[4,0,17,8],[4,10,13,13],[21,10,30,13],[21,0,83,8]]}
[{"$f":"+'Cover Page'!$B$29","v":"Annual Performance Report 2024"},null,null,null,{"$f":"+'Cover Page'!$B$33","v":"Enviropower Ltd"}]
[]
["Plant Description and Design",null,null,null,null,null,null,null,null,null,"Notes:"]
[]
["The main purpose of the activity at the installation is to burn residual non-hazardous construction and demolition waste as fuel for the production of steam. The steam is used to drive a steam turbine to produce electricity for export to the national grid. The installation covers the entire combustion plant including all combustion lines, waste reception, storage, waste-fuel and air supply systems, boiler, facilities for the treatment of exhaust gases, on-site facilities for handling and storage of residues and waste water, stack, devices and systems for controlling combustion operations, recording and monitoring conditions.\n\nThe plant has a  design capacity of 9.5te/hr, which equates to approximately 75,000 tonnes per year at 7884 hour operation. The are two identical combustion lines. The heat produced is used to generate electricity for export to the national grid. The process generates approximately 4MW of electricity for export to the national grid. Facilities are maintained to allow steam or hot water pass-outs such that opportunities for use of heat may be capitalised upon should they become practicable.",null,null,null,null,null,null,null,null,null,"Include summary of plant design, design capacity, no. of combustion lines, electrical and heat capacity and any other general information that describes the facility, its location and purpose "]
[]
[]
[]
[]
[]
[]
[]
[]
[]
[]
[]
[]
[]
[]
["Summary of Operational Processes and Procedures"]
[]
["Raw Materials:\nWaste is delivered to the plant via the waste recycling facility adjacent to the installation where it’s deposited into the inlet hopper of a Untha mobile-e shredder. The waste is then reduced to a maximum particle size of approximately 100mm. Ferrous and non-ferrous metals are then removed by a magnet and eddy current separator before the shredded waste is transferred to the fuel storage area from where it is fed into one of two reciprocating grate stoker fired combustion units and then incinerated. The furnaces are fitted with secondary chambers where the resulting flue gas is retained for >2seconds at >850 oC to ensure complete combustion.\nUrea is injected into the hot flue gas in the secondary chamber to reduce oxides of nitrogen (NOx) to nitrogen and water. The flue gas then passes through a heat exchanger where steam is raised to drive a steam turbine. The flue gas is then treated with sodium bicarbonate to neutralise acid gases and activated carbon to remove heavy metals, volatile organic compounds (VOCs) and dioxins and furans.\nRaw materials used in the process, apart from those referred to above, include small quantities of water treatment chemicals, oils, lubricants and biocides. These are all stored in bunded enclosures in the main process building.\nCombustion Process:\nThere are two waste combustion streams in parallel. Each stream is served by a Talbott Bio-10000 moving grate combustor. At the end of the grate the solid residues fall into a water quench chamber and are then conveyed to storage bay. Primary combustion air is extracted from within the building and fed in below the waste through the grate bars and above the waste mass to promote good combustion.\nSecondary combustion air is injected into a cylindrical secondary chamber where it is mixed with the hot flue gas and the temperature raised to >850 oC for more than 2 seconds. Urea is injected into the outlet of the combustion chamber to react with the oxides of nitrogen, chemically reducing them to nitrogen and water.\nAuxiliary natural gas burners are fitted to assist in maintaining gas temperatures above 850oC for 2 seconds with a minimum of 6% oxygen content in the combustor. The oxygen concentration and temperature are carefully controlled to minimise dioxin emissions.\nEnergy Recovery:\nThe steam generating boilers are located at the exit of the flue gas from the secondary chamber. Hot gases pass through a series of heat exchangers and superheaters and finally through an economiser. The steam is fed to a steam turbine which generates electricity. Water for steam generation is taken from the town’s water main and is treated prior to use in the boilers. Steam is condensed in an air cooled vacuum condenser and then recycled to the boiler. All process waste waters are discharged directly to sewer in accordance with a trade effluent consent.\nGas Cleaning:\nFlue gases pass from the boiler to the gas cleaning equipment. The design of the boilers is such that the flue gas temperature is quickly reduced through the critical temperature range thus minimising dioxin reformation. The gas enters a reaction chamber where sodium bicarbonate and activated carbon are injected to neutralise acid gases and absorb (primarily) dioxins, volatile organic compounds (VOCs), PAHs and mercury. The sodium bicarbonate injection rate is automatically controlled by upstream management of hydrogen chloride (HCl) and sulphur dioxide (SO2), the HCl and SO2 concentrations being continually monitored by CEMS to optimise sodium bicarbonate usage.\nNitrogen oxides (NOx) abatement is achieved by the use of selective non-catalytic reduction (SNCR) and flue gas recirculation. The SNCR is based on the injection of urea into the furnace chambers before the sodium bicarbonate and carbon injection and before the gas passes to the bag filters.\nBag filters remove the fine ash plus excess and spent sorbent as the gases pass across the bag fabric. The build up of the latter two enhances the performance of the system. Reverse pulses of compressed air are used to remove the accumulated particulate (“APC residues”) from the bags. The APC residues fall into a collection hopper and from there into 1m3 capacity ‘tote’ bags which are sealed when full and then stored within the main building prior to transport to a suitably licensed hazardous waste disposal facility.\nThe cleaned gas then discharges to atmosphere via two 16-metre stacks.\nAncillary Operations:\nDe-mineralised water is required to compensate for boiler blow down losses. This is treated prior to use with chemicals such as sodium sulphate and sodium hydroxide to reduce hardness. These activities all take place within bunded areas within the main process building.\nAsh Handling:\nBottom ash is sent off-site for aggregate recycling. APC residues are sent for disposal off site by licensed contractors subject to waste licensing legislation. Ferrous metals are sent for recovery off site by licensed contractors subject to waste permitting legislation. All other solid waste residues arising from the operation of the process will be removed from site, in enclosed containers, for disposal by suitable contractors.\nLiquid Effluent and Site Drainage:\nThe plant uses approximately 20000 tonnes per year of potable water. This is largely made up of boiler blow down water. All other process waters, such as site wash down water and bottom ash quench are recycled within the process via a waste water tank and only where necessary discharged directly to sewer. There is no discharge of process liquids to controlled waters. Uncontaminated surface water is discharged via an interceptor to local surface water drains.\nEmissions Monitoring:\nEmissions from the stack are continuously monitored. In addition periodic sampling and measurement will be carried out for metals The appearance of the key release points of the main plant stack are monitored by CCTV. Date coded video records are available to supplement process records should they be required.\nThe status log of a permit sets out the permitting history, including any changes to the permit reference number.",null,null,null,null,null,null,null,null,null,"Include summary of key processes and procedures such as (but not limited to); waste reception, control rooms, grate, bed and boiler, energy & heat  generation, cooling systems, residue management, emission controls, health and safety systems, maintenance"]

{"sheet":"Operational Data","index":3,"n_rows":65,"n_cols":10,"rows_kept":65,"cut":false,"hidden":false,"merged":[[5,9,7,9],[52,0,56,0],[33,1,38,1],[3,1,3,2],[7,1,19,1],[23,1,26,1],[28,1,29,1],[9,9,20,9],[21,9,25,9]]}
[{"$f":"+'Cover Page'!$B$29","v":"Annual Performance Report 2024"},null,null,null,{"$f":"+'Cover Page'!$B$33","v":"Enviropower Ltd"}]
[]
["Operational Data"]
["Plant Size",75000,null,"tonnes pa",20,"MWth",5,"MWe",null,"Notes:"]
["No. of combustion lines",2,null,"No. of Turbines:",null,1,null,null,null,"* - RDF to include SRF "]
[null,null,null,null,null,null,null,null,null,"** - Combusted tonnage = tonnes delivered in period + (tonnes in bunker at start of period – tonnes in bunker at end of period), or equivalent calculation depending on plant type"]
["Waste types received","Unit","Q1","Q2","Q3","Q4","Year Total","%"]
["Household / Local Authority","tonnes",0,0,0,0,{"$f":"SUM(C8:F8)","v":0},{"$f":"IF(G8>0,G8/$G$18,\"-\")","v":"-"}]
["Commercial & Industrial ",null,0,0,0,0,{"$f":"SUM(C9:F9)","v":0},"-",null,"*** - CHP plants only"]
["Hazardous ",null,0,0,0,0,0,"-",null,"**** Availability Definition: 'the availability of a line is to be calculated by the number of hours the line reported Continuously Monitored emission levels to the Regulator through the calendar year divided by the total number of hours in that year. \n\nThe overall plant availability is calculated as the Mean of all lines in the plant. For clarity this includes periods of abnormal operation.'  \n\nRationale: The primary function of an Energy from Waste facility is the disposal of waste. It follows therefore that the availability of a plant is determined by the period of time a facility spends undertaking this activity."]
["Clinical",null,0,0,0,0,0,"-"]
["Waste wood (biomass) ",null,15580,17731,18202,14334,65847,0.96583841821168737]
["Refuse Derived Fuel * - H'hold/LA",null,0,0,0,0,{"$f":"SUM(C13:F13)","v":0},"-"]
["Refuse Derived Fuel *  - C&I",null,0,0,0,0,0,"-"]
["Trommel Fines & Sawdust",null,636,661,538,494,2329,3.4161581788312606E-2]
["Other [Please specify]",null,0,0,0,0,0,"-"]
["Other [Please specify]",null,0,0,0,0,0,"-"]
["Total waste received",null,{"$f":"SUM(C8:C17)","v":16216},{"$f":"SUM(D8:D17)","v":18392},{"$f":"SUM(E8:E17)","v":18740},{"$f":"SUM(F8:F17)","v":14828},68176]
["Rejected Waste ",null,0,0,0,0,{"$f":"SUM(C19:F19)","v":0},{"$f":"IF(G19>0,G19/$G$18,\"-\")","v":"-"}]
["Unprocessed waste transferred out",null,0,0,0,0,{"$f":"SUM(C20:F20)","v":0},{"$f":"IF(G20>0,G20/$G$18,\"-\")","v":"-"}]
["Total waste combusted **",null,16080.7,17734.8,17675.2,14574.1,{"$f":"SUM(C21:F21)","v":66064.800000000003}]
[null,null,null,null,null,null,null,null,null,"Password for protected cells\nA password has been set to prevent accidental  editing of cells with formulae. \nIf you still need to make an edit for some reason then the password = 1234"]
["Energy Usage / Export","Unit","Q1","Q2","Q3","Q4","Year Total","KWh/te"]
["Power Generated","MWh",7673.03,8997.57,9330.15,6521,{"$f":"SUM(C24:F24)","v":32521.75},{"$f":"IF(G24>0,G24*1000/$G$21,\"-\")","v":492.27046778314622}]
["Power Exported",null,5653.6,6476.8,6775.2,5018.3,{"$f":"SUM(C25:F25)","v":23923.9},{"$f":"IF(G25>0,G25*1000/$G$21,\"-\")","v":362.12778968527869}]
["Power Used on site",null,2034.43,2539.37,2559.4499999999998,1814.7,{"$f":"SUM(C26:F26)","v":8947.9500000000007},{"$f":"IF(G26>0,G26*1000/$G$21,\"-\")","v":135.44202056163039}]
["Power Imported",null,15,18.600000000000001,4.5,312,350.1,{"$f":"IF(G27>0,G27*1000/$G$21,\"-\")","v":5.2993424637628506}]
["Parasitic Load","%",{"$f":"IF(C24>0,1-C25/(C24+C27),\"-\")","v":0.264623056881932},{"$f":"IF(D24>0,1-D25/(D24+D27),\"-\")","v":0.28164619788668577},{"$f":"IF(E24>0,1-E25/(E24+E27),\"-\")","v":0.27418810560653051},{"$f":"IF(F24>0,1-F25/(F24+F27),\"-\")","v":0.26557880872237671},{"$f":"IF(G24>0,1-G25/(G24+G27),\"-\")","v":0.27220707079157391}]
["Thermal Energy Produced ***","MWh",0,0,0,0,{"$f":"SUM(C29:F29)","v":0},{"$f":"IF(G29>0,G29*1000/$G$21,\"-\")","v":"-"}]
["Thermal Energy Exported ***",null,0,0,0,0,0,{"$f":"IF(G30>0,G30*1000/$G$21,\"-\")","v":"-"}]
["R1 value (if applicable)","R1"]
[]
["Waste Disposal & Recovery","Unit","Q1","Q2","Q3","Q4","Year Total","% inputs"]
["APC Residues - produced","tonnes",663,984,915,803,{"$f":"SUM(C34:F34)","v":3365},{"$f":"IF(G34>0,G34/$G$21,\"-\")","v":5.0934839733110519E-2}]
["IBA - produced",null,1517,1587,1944,1529,6577,{"$f":"IF(G35>0,G35/$G$21,\"-\")","v":9.9553771448638306E-2}]
["Metals recycling",null,37,2,0,0,{"$f":"SUM(C36:F36)","v":39},5.9032949467795258E-4]
["Other",null,0,0,0,0,{"$f":"SUM(C37:F37)","v":0},"-"]
["Other",null,0,0,0,0,0,"-"]
["Other",null,0,0,0,0,0,"-"]
[]
["Raw Material Usage","Unit","Q1","Q2","Q3","Q4","Year Total","kg or Ltr /te"]
["Mains Water","ltrs",4722000,4887000,6066000,4699000,{"$f":"SUM(C42:F42)","v":20374000},{"$f":"IF(G42>0,G42/$G$21,\"-\")","v":308.39418268124626}]
["Other Water","ltrs",0,0,0,0,0,{"$f":"IF(G43>0,G43/$G$21,\"-\")","v":"-"}]
["Ammonia","kgs",0,0,0,0,0,"-"]
["Urea","kgs",40000,63000,40000,40000,{"$f":"SUM(C45:F45)","v":183000},2.7700076288734694]
["Activated Carbon","kgs",10000,10000,20000,10000,50000,0.75683268548455451]
["Sodium Bicarbonate","kgs",391200,732980,609520,615740,2349440,35.562659691696638]
["Fuel oil","ltrs",0,0,0,0,0,"-"]
["Gas","cuf",873826,970518,742738,770531,3357613]
["Other",null,0,0,0,0,0]
[]
["Summary ","Line/Unit","Q1","Q2","Q3","Q4","Year Total",null,"Hrs in year "]
["Availability of waste combustion by line, hrs ****",1,1757.86,2094.9299999999998,2182.14,1614.47,{"$f":"SUM(C53:F53)","v":7649.4000000000005},{"$f":"+G53/$I$53","v":0.87083333333333335},8784,"Change this figure to 8784 in a leap year"]
[null,2,1874.84,2086.64,2120.91,1525.03,7607.4199999999992,{"$f":"+G54/$I$53","v":0.86605418943533685}]
[null,3,0,0,0,0,0,0]
[null,4,0,0,0,0,0,0]
[null,5,0,0,0,0,{"$f":"SUM(C57:F57)","v":0},0]
["Overall Availability, mean avg. of all lines, hrs",null,null,null,null,null,{"$f":"AVERAGE(G53:G54)","v":7628.41},0.8684437613843351]
["Hours of turbine operations, hrs",1,2166.4699999999998,2165.33,2203.09,1464.02,7998.91,0.91062272313296899]
["Hours of turbine operations, hrs",2,0,0,0,0,0,0]
["Hours of heat / steam export",null,0,0,0,0,0,{"$f":"IF(B61>0,G60/I53,\"n/a\")","v":"n/a"}]
["Net Calorific Value of waste","MJ/kg",13.536,14.715,15.676,15.875999999999999,59.802999999999997]
["Abnormal Events","qty.",2,2,1,8,13,{"$f":"IF(G63>0,\"yes\",\"no\")","v":"yes"}]
["Abnormal operation","hours",2.5,8.5,0.5,19,30.5,{"$f":"+(G64)/I53","v":3.472222222222222E-3}]
["Permit Breaches","qty.",1,0,0,1,2,{"$f":"IF(G65>0,\"yes\",\"no\")","v":"yes"}]

{"sheet":"Operational Summary","index":4,"n_rows":59,"n_cols":11,"rows_kept":59,"cut":false,"hidden":false,"merged":[[65,1,65,8],[66,1,66,8],[67,1,67,8],[68,1,68,8],[69,1,69,8],[54,1,54,8],[54,10,64,13],[55,1,55,8],[56,1,56,8],[57,1,57,8],[58,1,58,8],[59,1,59,8],[60,1,60,8],[61,1,61,8],[62,1,62,8],[63,1,63,8],[64,1,64,8],[4,0,26,8],[30,0,51,8],[4,10,13,13],[30,10,39,13],[53,1,53,8]]}
[{"$f":"+'Cover Page'!$B$29","v":"Annual Performance Report 2024"},null,null,null,{"$f":"+'Cover Page'!$B$33","v":"Enviropower Ltd"}]
[]
["Summary of Plant Operations and Maintenance during the reporting year",null,null,null,null,null,null,null,null,null,"Notes:"]
[]
["Lines A's Bag Filter modified to increase capacity and reduce velocities.\n\nLine A economiser replaced.\n\nLine B economiser replaced.",null,null,null,null,null,null,null,null,null,"Include summary of key operational and/or maintenance activity undertaken in the year, such as any major component upgrades and/or replacements "]
[]
[]
[]
[]
[]
[]
[]
[]
[]
[]
[]
[]
[]
[]
[]
[]
[]
[]
[]
[]
[]
[]
[]
["Summary of Residue Handling for the reporting year"]
[]
["Residues handled according to our internal residue handling procedures.\n\nAPC Residue destination is Augean.\n\nIBA destination is Rabbit Waste Management.",null,null,null,null,null,null,null,null,null,"Include in here a summary of residue handling regimes and destinations "]
[]
[]
[]
[]
[]
[]
[]
[]
[]
[]
[]
[]
[]
[]
[]
[]
[]
[]
[]
[]
[]
[]
[{"$f":"'Cover Page'!C39","v":2024},"Plant shut-downs"]
["Date","Reason for shut-down",null,null,null,null,null,null,null,null,"Provide a very brief reason for plant shut-down e.g. \"Shut-down prior to major outage\"; \"Emergency shut-down due to boiler tube leak\"\n\nThere is no need to include periods of hot-standby here (e.g. to clear feed chute hopper blockages).\n\nFor clinical waste incinerators which require regular shut-downs for boiler cleaning, there is no need to record these here. "]
["January-March","13th Jan – 14th Jan: Line B down for economiser maintenance.\n17th Jan – 18th Jan: Line B down for economiser maintenance.\n22nd Jan: Line A down for fan maintenance.\n24th Jan: Line A down for fan maintenance.\n31st Jan: Line B down for fan maintenance.\n13th Feb: Line A down for fan maintenance.\n15th Feb – 16th Feb: Line A down for fan and turbine maintenance.\n15th Feb – 17th Feb: Line B down for fan and turbine maintenance.\n20th Feb: Line B down for fan maintenance.\n23rd Feb: Line B down for fan maintenance.\n28th Feb: Line B down for fan maintenance.\n2nd Mar – 20th Mar: Line A down for planned maintenance.\n19th Mar: Line B down for fan maintenance.\n21st Mar – 30th Mar: Line B down for planned maintenance."]
["April-June","6th Apr: Line A & B down due to failure of a level switch on the condensate receiver.\n11th Apr: Line B down to clear blockages with additive screw and assess quality of sodium bicarbonate.\n12th Apr: Line A down to preserve sodium bicarbonate and keep Line B operating.\n4th May – 9th May: Line B down due to sodium bicarbonate supply issues.\n5th May – 6th May: Line A down due to sodium bicarbonate supply issues.\n23rd May: Line B down due to sub-quality sodium bicarbonate not maintaining emissions.\n3rd Jun – 7th Jun: Line B down due to crane maintenance.\n3rd Jun – 4th Jun: Line A down due to crane maintenance.\n6th Jun – 7th Jun: Line A down due to bag filter discharge screw maintenance."]
["July-September","23rd Jul – 25th Jul: Line B down for ID fan maintenance.\n10th August: Line B down for boiler level controller replacement.\n30th August: Line B down for ID fan maintenance.\n27th & 28th September: Line B down for superheater maintenance."]
["October-December","10th – 12th Nov: Line B shutdown to preserve sodium bicarbonate silo stock until the next delivery.\n18th – 19th Nov: Line A shutdown to preserve sodium bicarbonate silo stock until the next delivery.\n09th December: Line B shutdown to preserve sodium bicarbonate silo stock until the next delivery.\n13th December: Line B down for ID fan maintenance.\n17th – 31st December: Line B down for general maintenance.\n18th – 31st December: Line A down for general maintenance."]

{"sheet":"Perf. Form 1","index":5,"n_rows":54,"n_cols":10,"rows_kept":54,"cut":false,"hidden":false,"merged":[[9,0,9,9],[10,0,10,1],[10,2,10,3],[10,4,10,5],[10,6,10,7],[10,8,10,9],[2,0,2,4],[2,6,2,8],[3,1,3,4],[5,3,5,4],[5,6,5,7],[8,0,8,1],[8,2,8,3],[8,4,8,5],[8,6,8,7],[8,8,8,9],[11,0,11,1],[11,2,11,3],[11,4,11,5],[11,6,11,7],[11,8,11,9],[12,0,12,1],[12,2,12,3],[12,4,12,5],[12,6,12,7],[12,8,12,9],[15,0,15,1],[15,2,15,3],[15,4,15,5],[15,6,15,7],[15,8,15,9],[16,0,16,9],[13,0,13,1],[13,2,13,3],[13,4,13,5],[13,6,13,7],[13,8,13,9],[14,0,14,3],[14,4,14,5],[14,6,14,7],[14,8,14,9],[17,0,17,1],[17,2,17,3],[17,4,17,5],[17,6,17,7],[17,8,17,9],[18,0,18,1],[18,2,18,3],[18,4,18,5],[18,6,18,7],[18,8,18,9],[19,0,19,1],[19,2,19,3],[19,4,19,5],[19,6,19,7],[19,8,19,9],[20,0,20,1],[20,2,20,3],[20,4,20,5],[20,6,20,7],[20,8,20,9],[21,0,21,1],[21,2,21,3],[21,4,21,5],[21,6,21,7],[21,8,21,9],[22,0,22,3],[22,4,22,5],[22,6,22,7],[22,8,22,9],[31,0,31,3],[31,7,31,8],[32,0,32,3],[32,4,32,5],[32,7,32,8],[33,0,33,3],[33,4,33,5],[33,7,33,8],[23,0,23,3],[23,4,23,5],[23,6,23,7],[23,8,23,9],[25,0,25,9],[26,0,28,9],[36,0,36,3],[36,4,36,5],[36,7,36,8],[37,0,37,3],[37,4,37,5],[37,7,37,8],[34,0,34,3],[34,4,34,5],[34,7,34,8],[35,0,35,3],[35,4,35,5],[35,7,35,8],[47,0,47,1],[49,0,49,9],[50,0,51,9],[38,0,38,9],[39,0,40,9],[43,0,43,1],[43,2,43,9],[45,0,45,1],[46,0,46,1]]}
[{"$f":"+'Cover Page'!C39","v":2024}," Annual Reporting Performance Form 1"]
[]
[{"$f":"+'Cover Page'!B31","v":"Permit EPR/XP3030XX"},null,null,null,null,"Operator: ",{"$f":"+'Cover Page'!B37","v":"Enviropower Ltd"}]
["Facility:",{"$f":"+'Cover Page'!B33:I33","v":"Enviropower Ltd"},null,null,null,"Form:","Performance 1"]
[]
["Reporting  Period from: ",null,null,"2024-01-01",null,"to:","2024-12-31"]
[]
[{"$f":"+A1","v":2024},"Annual Reporting of Waste Disposal and Recovery"]
["Waste Description",null,"Disposal Route(s)",null,"Disposal Tonnes",null,"Recovery Tonnes",null,"% / tonne of waste incinerated"]
["1) Hazardous Wastes"]
["APC Residues",null,1,null,3365,null,0,null,{"$f":"IF((E11+G11)>0,(E11+G11)/'Operational Data'!$G$21, \"-\")","v":5.0934839733110519E-2}]
["IBA",null,0,null,0,null,0,null,{"$f":"IF((E12+G12)>0,(E12+G12)/'Operational Data'!$G$21, \"-\")","v":"-"}]
[null,null,null,null,null,null,null,null,{"$f":"IF((E13+G13)>0,(E13+G13)/'Operational Data'!$G$21, \"-\")","v":"-"}]
[null,null,null,null,null,null,null,null,{"$f":"IF((E14+G14)>0,(E14+G14)/'Operational Data'!$G$21, \"-\")","v":"-"}]
["Total Hazardous Waste",null,null,null,{"$f":"SUM(E11:F14)","v":3365},null,{"$f":"SUM(G11:H14)","v":0},null,{"$f":"IF((E15+G15)>0,(E15+G15)/'Operational Data'!$G$21, \"-\")","v":5.0934839733110519E-2}]
[]
["2) Non-Hazardous Wastes"]
["IBA",null,1,null,0,null,6577,null,{"$f":"IF((E18+G18)>0,(E18+G18)/'Operational Data'!$G$21, \"-\")","v":9.9553771448638306E-2}]
["Ferrous Metal",null,1,null,0,null,39,null,{"$f":"IF((E19+G19)>0,(E19+G19)/'Operational Data'!$G$21, \"-\")","v":5.9032949467795258E-4}]
["Process Water",null,0,null,0,null,0,null,{"$f":"IF((E20+G20)>0,(E20+G20)/'Operational Data'!$G$21, \"-\")","v":"-"}]
[null,null,null,null,null,null,null,null,{"$f":"IF((E21+G21)>0,(E21+G21)/'Operational Data'!$G$21, \"-\")","v":"-"}]
[null,null,null,null,null,null,null,null,{"$f":"IF((E22+G22)>0,(E22+G22)/'Operational Data'!$G$21, \"-\")","v":"-"}]
["Total Non-Hazardous Waste",null,null,null,{"$f":"SUM(E18:F22)","v":0},null,{"$f":"SUM(G18:H22)","v":6616},null,{"$f":"IF((E23+G23)>0,(E23+G23)/'Operational Data'!$G$21, \"-\")","v":0.10014410094331626}]
["TOTAL WASTE",null,null,null,{"$f":"+E23+E15","v":3365},null,{"$f":"+G23+G15","v":6616},null,{"$f":"IF((E24+G24)>0,(E24+G24)/'Operational Data'!$G$21, \"-\")","v":0.15107894067642677}]
[]
["Operator’s comments :"]
[]
[]
[]
[]
[{"$f":"+A1","v":2024},"Annual Reporting of Water and Other Raw Material Usage"]
["Raw Material",null,null,null,"Usage",null,"Unit","Specific Usage",null,"Unit"]
["Mains Water",null,null,null,{"$f":"+'Operational Data'!G42/1000","v":20374},null,"m3",{"$f":"IF(E33>0,E33/'Operational Data'!$G$21,\"-\")","v":0.3083941826812463},null,"m3/te"]
["Total Water",null,null,null,{"$f":"+'Operational Data'!G43+'Operational Data'!G42/1000","v":20374},null,"m3",{"$f":"IF(E34>0,E34/'Operational Data'!$G$21,\"-\")","v":0.3083941826812463},null,"m3/te"]
["Urea / Ammonia",null,null,null,{"$f":"+'Operational Data'!G45","v":183000},null,"kg",{"$f":"IF(E35>0,E35/'Operational Data'!$G$21,\"-\")","v":2.7700076288734694},null,"kg/te"]
["Activated Carbon",null,null,null,{"$f":"+'Operational Data'!G46","v":50000},null,"kg",{"$f":"IF(E36>0,E36/'Operational Data'!$G$21,\"-\")","v":0.75683268548455451},null,"kg/te"]
["Lime / hydrated lime / Sodium Bicarb.",null,null,null,{"$f":"+'Operational Data'!G47","v":2349440},null,"kg",{"$f":"IF(E37>0,E37/'Operational Data'!$G$21,\"-\")","v":35.562659691696638},null,"kg/te"]
[]
["Operator’s comments :"]
[]
[]
[]
[{"$f":"+A31","v":2024},"Annual Reporting of other performance indicators "]
["Parameter",null,"Results by Line"]
[null,null,"A1","A2","A3","A4","A5",null,"Turbine 1","Turbine 2"]
["Operating hours for the year, hours",null,7649,7607,0,0,0,null,7999,0]
["Number of periods of abnormal operation, qty.",null,5,4,0,0,0,null,0,0]
["Cumulative hours of abnormal operation for this year, hours",null,9.5,9.5,0,0,0,null,0,0]
[]
["Operator’s comments :"]
[]
[]
[]
["Signed: ","J Timms",null,null,null,null,"Date:","24th January 2025"]

{"sheet":"Energy Form 1","index":6,"n_rows":29,"n_cols":8,"rows_kept":29,"cut":false,"hidden":false,"merged":[[2,6,2,8],[4,1,4,4],[6,3,6,4],[6,6,6,7],[8,0,8,2],[8,3,8,4],[8,6,8,8],[9,0,9,2],[9,3,9,4],[9,6,9,8],[10,0,10,2],[10,3,10,4],[10,6,10,8],[11,0,11,2],[11,3,11,4],[11,6,11,8],[12,0,12,2],[12,3,12,4],[12,6,12,8],[13,0,13,2],[13,3,13,4],[13,6,13,8],[14,0,14,2],[14,3,14,4],[14,6,14,8],[15,0,15,2],[15,3,15,4],[15,6,15,8],[17,0,17,8],[18,0,24,8]]}
[{"$f":"+'Cover Page'!C39","v":2024}," Annual Reporting of Energy Usage/Export"]
[]
[{"$f":"+'Cover Page'!B31","v":"Permit EPR/XP3030XX"},null,null,null,null,"Operator: ",{"$f":"+'Cover Page'!B37","v":"Enviropower Ltd"}]
[]
["Facility:",{"$f":"+'Cover Page'!B33:I33","v":"Enviropower Ltd"},null,null,null,"Form:","Energy 1"]
[]
["Reporting  Period from: ",null,null,{"$f":"+'Perf. Form 1'!D6:E6","v":"2024-01-01"},null,"to:",{"$f":"+'Perf. Form 1'!G6:H6","v":"2024-12-31"}]
[]
["Energy Source",null,null,"Energy Usage",null,"Unit","Specific Usage (KWh/tonne incinerated"]
["Electricity Produced",null,null,{"$f":"+'Operational Data'!G24","v":32521.75},null,"MWh",{"$f":"+'Operational Data'!H24","v":492.27046778314622}]
["Electricity Imported   ",null,null,{"$f":"+'Operational Data'!G27","v":350.1},null,"MWh",{"$f":"+'Operational Data'!H27","v":5.2993424637628506}]
["Electricity Exported",null,null,{"$f":"+'Operational Data'!G25","v":23923.9},null,"MWh",{"$f":"+'Operational Data'!H25","v":362.12778968527869}]
["Gas Oil",null,null,null,null,"tonnes"]
["Steam/hot water exported",null,null,{"$f":"+'Operational Data'!G30","v":0},null,"GWh",{"$f":"+'Operational Data'!H30","v":"-"}]
[]
[]
[]
["Operator’s comments :"]
[]
[]
[]
[]
[]
[]
[]
[]
[]
[]
["Signed: ","J Timms",null,null,null,null,"Date:","24th January 2025"]

{"sheet":"Permit Compliance","index":7,"n_rows":30,"n_cols":12,"rows_kept":30,"cut":false,"hidden":false,"merged":[[35,4,35,8],[33,1,33,3],[33,4,33,6],[33,7,33,9],[34,1,34,3],[34,4,34,6],[34,7,34,9],[8,11,20,11],[19,1,19,2],[19,3,19,5],[19,7,19,8],[21,1,21,2],[21,3,21,5],[9,0,9,1],[9,2,9,4],[9,5,9,8],[10,0,10,1],[10,2,10,4],[10,5,10,8],[11,0,11,1],[11,2,11,4],[11,5,11,8],[12,0,12,1],[12,2,12,4],[12,5,12,8],[13,0,13,1],[13,2,13,4],[13,5,13,8],[7,0,7,1],[7,2,7,8],[8,0,8,1],[8,2,8,4],[8,5,8,8],[14,0,14,1],[14,2,14,4],[14,5,14,8],[15,0,15,1],[16,2,16,4],[16,5,16,8],[15,2,15,4],[15,5,15,8],[16,0,16,1],[32,1,32,3],[32,4,32,6],[32,7,32,9],[29,1,29,3],[29,4,29,6],[29,7,29,9],[30,1,30,3],[30,4,30,6],[30,7,30,9],[18,0,18,10],[31,1,31,3],[31,4,31,6],[31,7,31,9],[22,1,22,2],[22,3,22,5],[26,0,26,8],[28,0,28,10],[23,1,23,2],[23,3,23,5],[24,1,24,2],[24,3,24,5],[25,1,25,2],[25,3,25,5]]}
[{"$f":"+'Cover Page'!$B$29","v":"Annual Performance Report 2024"},null,null,null,{"$f":"'Cover Page'!$B$33","v":"Enviropower Ltd"}]
[]
["Summary of Permit Compliance"]
[]
["Compliance with permit limits for continuously monitored pollutants"]
[]
["The plant met its emission limits as shown in the table below:"]
["Substance",null,"Percentage time compliant during operationNote 1",null,null,null,null,null,null,null,null,"Notes:"]
[null,null,"Half-hourly limit",null,null,"Daily limit",null,null,null,null,null,"Note 1: Please report to 2 decimal places, i.e. xx.xx%\n\nNote 2: Please enter into this table any permit non-compliances that the EA has given a CCS score for. Please also enter any other non-compliances which you have notified to the EA (e.g. ELV exceedances) but which have not yet been assessed by the EA. There is no need to enter any notifications which were subsequently assessed by the EA not to be permit breaches.  \n\nNote 3: Please enter information here (rather than just referencing the notifications that were sent to the EA) including where relevant the incineration line reference, pollutant and value of the measured result for any ELV exceedances.   \n\n"]
["Particulates",null,1,null,null,1]
["Oxides of nitrogen",null,1,null,null,1]
["Sulphur dioxide",null,1,null,null,0.99860000000000004]
["Carbon monoxide",null,"100.00% 95% of 10-min averages",null,null,1]
["Total organic carbon",null,1,null,null,1]
["Hydrogen chloride",null,1,null,null,0.99860000000000004]
["Hydrogen fluoride",null,"xx.xx %",null,null,"xx.xx %"]
[null,null,1,null,null,0.99950000000000006]
[]
["Summary of non-compliances under the permit Note 2"]
["Date","Summary of non-compliance Note 3",null,"Reason ",null,null,"Measures taken to prevent reoccurrence","CCS score if applicable*"]
[null,null,null,null,null,null,null,"Impact","Root cause"]
["2024-02-18","Line B - SO2 - 40.82mg/Nm3",null,"An increase in oxygen levels during the last hour of the day\nresulted in a period of elevated SO2, taking the daily average\nslightly above the limit. The elevated levels reduced shortly after\nmidnight and were being controlled as expected.",null,null,null,"C4"]
["2024-11-06","Line B - HCL - 8.60mg/Nm3",null,"Abatement product (sodium bicarbonate) unable to control effectively.",null,null,"We have spoken to the supplier and an investigation was carried out. They have admitted there was a mistake on their part and have asured us that it will not happen again. Additionally to this, we have found an alternative supplier of sodium bicarbonate which we can now use.","C4","Incorrect abatement product delivered by supplier with no prior notice."]
[]
[]
[]
["*If the Environment Agency (EA) has given a Compliance Classification Scheme (CCS) score due to a permit non-compliance it should be entered here (CCS4 = No impact; CCS3 = Minor impact; CCS2 = Significant impact; CCS1 = Major impact). If the EA has not yet assessed a non-compliance which you have notified to them, these columns should be left blank. "]
[]
["Summary of any complaints received and actions to taken to resolve them."]
["Date","Summary of complaint [including Line/Reference]",null,null,"Reason (including whether substantiated by the operator or the EA)",null,null,"Measures taken to prevent reoccurrence"]

{"sheet":"Improvements","index":8,"n_rows":39,"n_cols":5,"rows_kept":39,"cut":false,"hidden":false,"merged":[[37,0,37,8],[38,0,47,8],[4,0,4,8],[5,0,13,8],[15,0,15,8],[16,0,24,8],[26,0,26,8],[27,0,35,8]]}
[{"$f":"+'Cover Page'!$B$29","v":"Annual Performance Report 2024"},null,null,null,{"$f":"+'Cover Page'!$B$33","v":"Enviropower Ltd"}]
[]
["Summary of Plant Improvements"]
[]
["Summary of any efficiency improvements that have been completed within the year."]
["Line A's Bag Filter modified to increase capacity and reduce velocities.\n\nLine A's economiser replaced.\n\nLine B's economiser replaced."]
[]
[]
[]
[]
[]
[]
[]
[]
[]
["Summary of any permit improvement conditions that have been completed within the year and the resulting environmental benefits."]
["22/02/2024 - IC 2 - The operator shall submit a report to the Environment Agency for approval on whether waste feed to the plant can be proven to have a low and stable mercury content. The report shall have regard to BAT 4 of the BAT conclusions, be based on historic mercury emissions monitoring data and have regard to the Environment Agency Mercury Monitoring Protocol.\n\n22/02/24 - IC 3 - The operator shall submit a report to the Environment Agency for approval on whether dioxin emissions to air are stable. The report shall have regard to BAT 4 of the BAT conclusions, be based on historic dioxin emissions monitoring data and have regard to the Environment Agency Dioxins Monitoring Protocol.\n\n27/06/24 - IC 1 - The operator shall perform a study to determine the extent to which the operation of the current systems in place at the plant to minimise NOx emissions can be further optimised such that emissions are reduced as far as possible below 150 mg/Nm3 as a daily average, without significantly increasing emissions of other pollutants or having a significant negative effect on plant operation, reliability or bottom ash quality. The study shall be based on the results of trials carried out at the installation and shall have regard to the recommendations for test conditions set out in Section\n5.4.3 of report titled ‘Establishing factors that influence NOx reduction at waste incineration plant to levels below the upper end of the BAT-AELs’ (dated 14/01/2022), or other methodology agreed in writing with the Environment Agency. A written report of the study shall be submitted to the Environment Agency for approval which shall include but not necessarily be limited to the following:\n•\tA brief description of the currently installed measures at the installation to minimise NOx emissions, including details of how the reagent dosing system responds to emissions monitoring data and historic data which illustrates the current achievable level of daily NOx emissions.\n•\tThe results of trials conducted to further reduce daily average NOx emissions using currently installed measures, including:\no\ta description of the parameters that were varied during the trial e.g. ammonia or urea feed rates, physical form of urea injected, air flows, and the range over which they were varied\no\tthe levels of NOx achieved and associated levels of ammonia and nitrous oxide emissions and reagent consumption\no\tobserved effects and predicted long-term impacts on plant operation, reliability and maintenance regime\no\tany changes to the composition of the bottom ash and boiler ash and the implications of those changes for the ability to process and use the ash, as well as for the pollution potential of the ash both during processing and its subsequent use as a secondary aggregate\no\tany other relevant cross-media effects\nThe report shall also include a description of the extent to which current systems in place at the plant to minimise NOx emissions can be optimised on a permanent basis, including justification and an implementation plan where relevant.\n\n26/11/24 - IC 4 - The operator shall carry out an assessment of the opportunities to increase the energy efficiency of the installation.\nThe assessment shall include but not necessarily be limited to:\n•\tImprovements that could be made to the furnace (including control systems) in order to increase the amount of thermal energy produced per unit of thermal energy in the waste.\n•\tWhere relevant, improvements that could be made to the steam system and related components to allow a greater quantity of electricity to be generated per unit of thermal energy in the steam.\n•\tImprovements in the heat and electrical efficiency of the plant’s ancillary systems that could be made in order to reduce the heat and electrical loads of the plant.\n•\tWhere relevant, an implementation plan for the improvements identified, including the anticipated increase in the gross and/or net electrical efficiency of the plant which would be achieved.\nA written copy of the assessment shall be submitted to the Environment Agency for approval."]
[]
[]
[]
[]
[]
[]
[]
[]
[]
["Summary of any changes to the plant or operating techniques which required a variation to the permit and a summary of the resulting environmental impact."]
["None."]
[]
[]
[]
[]
[]
[]
[]
[]
[]
["Summary of any other improvements made to the plant or planned to be made and a summary of the resulting environmental benefits."]
["None."]

{"sheet":"Public Liaison","index":9,"n_rows":29,"n_cols":5,"rows_kept":29,"cut":false,"hidden":false,"merged":[[16,0,16,1],[16,2,16,8],[5,0,5,1],[5,2,5,8],[6,0,7,1],[6,2,7,8],[8,0,9,1],[8,2,9,8],[10,0,11,1],[10,2,11,8],[12,0,13,1],[12,2,13,8],[15,0,15,8],[17,0,18,1],[17,2,18,8],[19,0,20,1],[19,2,20,8],[21,0,22,1],[21,2,22,8],[23,0,24,1],[23,2,24,8],[25,0,26,1],[25,2,26,8],[28,0,28,8]]}
[{"$f":"+'Cover Page'!$B$29","v":"Annual Performance Report 2024"},null,null,null,{"$f":"+'Cover Page'!$B$33","v":"Enviropower Ltd"}]
[]
["Details of Public & Stakeholder Liaison"]
[]
["Summary of events held during the reporting year."]
["Date",null,"Description"]
[]
[]
[]
[]
[]
[]
[]
[]
[]
["List of events planned for next year"]
["Date",null,"Description"]
[]
[]
[]
[]
[]
[]
[]
[]
[]
[]
[]
["If you wish to be involved in the public liaison programme, please contact _________________"]

{"sheet":"Air (periodic)","index":10,"n_rows":39,"n_cols":11,"rows_kept":39,"cut":false,"hidden":false,"merged":[[5,10,8,13],[9,10,11,13],[8,0,8,9],[5,0,6,9],[11,0,11,1],[12,0,12,1],[11,3,11,4],[12,3,12,4],[9,0,10,1],[9,5,9,9],[9,3,10,4],[9,2,10,2],[16,0,16,1],[17,0,17,1],[18,0,18,1],[13,0,13,1],[14,0,14,1],[15,0,15,1],[39,0,40,9],[25,0,25,1],[26,0,26,1],[22,0,22,1],[23,0,23,1],[37,0,37,1],[27,0,27,1],[28,0,28,1],[29,0,29,1],[30,0,30,1],[31,0,31,1],[32,0,32,1],[37,3,37,4],[29,3,29,4],[30,3,30,4],[36,3,36,4],[38,0,38,9],[19,0,19,1],[20,0,20,1],[21,0,21,1],[34,3,34,4],[35,3,35,4],[33,0,33,1],[34,0,34,1],[35,0,35,1],[36,0,36,1],[24,0,24,1],[32,3,32,4],[27,3,27,4],[33,3,33,4],[19,3,19,4],[20,3,20,4],[21,3,21,4],[22,3,22,4],[23,3,23,4],[24,3,24,4],[31,3,31,4],[25,3,25,4],[26,3,26,4],[28,3,28,4],[13,10,14,12],[15,10,16,10],[15,11,16,11],[15,12,16,12],[18,3,18,4],[13,3,13,4],[14,3,14,4],[15,3,15,4],[16,3,16,4],[17,3,17,4]]}
[{"$f":"+'Cover Page'!$B$29","v":"Annual Performance Report 2024"},null,null,null,{"$f":"+'Cover Page'!$B$33","v":"Enviropower Ltd"}]
[]
["Emissions to Air (periodically monitored)"]
[]
["Summary of monitoring undertaken, standards used and compliance",null,null,null,null,null,null,null,null,null,"Notes:"]
["Periodic emissions monitoring as per permit requirements.",null,null,null,null,null,null,null,null,null,"Template may require adjustment for any bespoke monitoring requirements of permit - please also check that all default ELV values, reference periods and the stated oxygen reference value match those for your plant, and edit if necessary"]
[]
[]
["Results of emissions to air that are periodically monitored - oxygen reference 11%"]
["Substance",null,"Ref. Period","Emission Limit Value",null,"Average",null,null,null,null,"User to add additional tables as necessary, depending on whether quarterly or bi-annual reporting is required for the compliance year"]
[null,null,null,null,null,"A1\nJan-Jun","A2\nJan-Jun","A1\nJul-Dec","A2\nJul-Dec","A5"]
["Hydrogen fluoride",null,"1 hr","1 mg/m3",null,0.2,0.37,0.03,0.1]
["Cd and Tl and their compounds",null,"0.5-8hrs","0.02 mg/m3",null,2E-3,5.9999999999999995E-4,4.0000000000000002E-4,4.0000000000000002E-4]
["Hg and its compounds",null,"0.5-8hrs","0.02 mg/m3",null,8.0000000000000004E-4,1.6000000000000001E-3,5.0000000000000001E-4,6.9999999999999999E-4]
["Sb, As, Pb, Cr, Co, Cu, Mn, Ni, V and their compounds",null,"0.5-8hrs","0.3 mg/m3",null,0.26200000000000001,2.23E-2,3.61E-2,1.55E-2]
["Dioxins & Furans (I-TEQ)",null,"6-8hrs","0.06 ng/m3",null,1.2999999999999999E-3,8.9999999999999998E-4,2.7000000000000001E-3,2.0000000000000001E-4]
["PCBs (WHO-TEQ Humans / Mammals)",null,"6-8hrs","None set ng/m3",null,1E-4,1E-4,0,0]
["PCBs (WHO-TEQ Fish)",null,"6-8hrs","None set ng/m3",null,0,0,0,0]
["PCBs (WHO-TEQ Birds)",null,"6-8hrs","None set ng/m3",null,6.9999999999999999E-4,8.0000000000000004E-4,8.0000000000000004E-4,4.0000000000000002E-4]
["Dioxins & Furans (WHO-TEQ Humans / Mammals)",null,"6-8hrs","None set ng/m3",null,1.2999999999999999E-3,8.9999999999999998E-4,2.5000000000000001E-3,2.9999999999999997E-4]
["Dioxins & Furans (WHO-TEQ Fish)",null,"6-8hrs","None set ng/m3",null,1.2999999999999999E-3,8.9999999999999998E-4,2.7000000000000001E-3,2.9999999999999997E-4]
["Dioxins & Furans (WHO-TEQ Birds)",null,"6-8hrs","None set ng/m3",null,3.8E-3,2.0999999999999999E-3,4.4999999999999997E-3,5.0000000000000001E-4]
["Anthracene",null,"6-8hrs","None set µg/m3",null,0,0,0,0]
["Benzo(a)anthracene",null,"6-8hrs","None set µg/m3",null,0,0,0,0]
["Benzo(a)pyrene",null,"6-8hrs","None set µg/m3",null,0,0,0,0]
["Benzo(b)fluoranthene",null,"6-8hrs","None set µg/m3",null,0,0,0,0]
["Benzo(b)naptho(2,1-d) thiophene",null,"6-8hrs","None set µg/m3",null,0,0,0,0]
["Benzo(c)phenanthrene",null,"6-8hrs","None set µg/m3",null,0,0,0,0]
["Benzo(ghi)perylene",null,"6-8hrs","None set µg/m3",null,0,0,0,0]
["Benzo(k)fluoranthene",null,"6-8hrs","None set µg/m3",null,0,0,0,0]
["Cholanthrene",null,"6-8hrs","None set µg/m3",null,0,0,0,0]
["Chrysene",null,"6-8hrs","None set µg/m3",null,0,0,0,0]
["Cyclopenta(cd)pyrene",null,"6-8hrs","None set µg/m3",null,0,0,0,0]
["Dibenzo(ai)pyrene",null,"6-8hrs","None set µg/m3",null,0,0,0,0]
["Dibenzo(ah)anthracene",null,"6-8hrs","None set µg/m3",null,0,0,0,0]
["Fluoranthene",null,"6-8hrs","None set µg/m3",null,0,0,0,0]
["Indeno(123-cd) pyrene",null,"6-8hrs","None set µg/m3",null,0,0,0,0]
["Naphthalene",null,"6-8hrs","None set µg/m3",null,1E-4,1E-4,1E-4,1E-4]
["Comments :"]

{"sheet":"CO2 N2O","index":11,"n_rows":25,"n_cols":6,"rows_kept":25,"cut":false,"hidden":false,"merged":[[25,1,25,3],[16,2,16,3],[4,0,4,3],[9,0,9,3],[17,0,17,3],[13,0,13,3],[12,0,12,1],[8,2,8,3],[11,2,11,3],[19,2,19,3],[22,2,22,3]]}
[{"$f":"+'Cover Page'!$B$29","v":"Annual Performance Report 2024"},null,{"$f":"'Cover Page'!$B$33","v":"Enviropower Ltd"}]
[]
["Carbon dioxide emissions and biogenic content of waste inputs",null,null,null,null,"Notes:"]
[]
["Carbon dioxide emissions (all types of plant)"]
[null,"Annual mass of carbon dioxide released","tonnes ",62233.23]
[null,"Annual mass of carbon dioxide released per tonne of waste burned","t CO2 / t waste ",0.94199999999999995]
[null,"Annual mass of carbon dioxide released per MWh of energy exported","t CO2 / MWh export ",2.6]
[null,"Description of how annual carbon dioxide mass emission has been calculated. \nSee Note 1","using Tolvik report 2022 method:\n0.942 tCO2/t waste",null,null,"Note 1: All permits require operators to continuously monitor CO2 to EN14181 and flow to BS EN 16911-2 (unless otherwise agreed in writing). Operators must therefore use the results from these instruments to calculate their annual CO2 emissions. Where an operator does not have a flow meter calibrated to BS EN 16911-2, the averaged flow measurement from that year's periodic monitoring can be used instead. If the plant does not have calibrated CO2 CEMS, a suitably justified emissions factor can be used."]
["Nitrous oxide emissions (only plants which use ammonia or urea to abate NOx emissions)"]
[null,"Annual mass emissions of nitrous oxide","tonnes N2O",6.48]
[null,"Description of how annual nitrous oxide mass emission has been calculated\nSee Note 2","using 2021 Pollution Inveontory data method:\n0.0981 kgN2O/t waste",null,null,"Note 2: All permits require operators to continuously monitor N2O to EN14181 and flow to BS EN 16911-2, unless otherwise agreed in writing. Operators must therefore use the results from these instruments to calculate their annual N2O emissions. Where an operator does not have a flow meter calibrated to BS EN 16911-2, the averaged flow measurement from periodic monitoring can be used instead. If the plant does not have calibrated N2O CEMS, data from periodic monitoring or a suitably justified emissions factor can be used instead."]
["Total annual carbon dioxide + nitrous oxide emissions. \nSee Note 3. ",null,"tonnes CO2e",63950.2,null,"Note 3: Total annual carbon dioxide and nitrous oxide emissions reported as carbon dioxide equivalent where 1 tonne nitrous oxide is equivalent to 265 tonnes carbon dioxide."]
["Biogenic CO2 emissions (See Note 4)",null,null,null,null,"Note 4: Only plants combusting residual municipal waste, refuse derived fuel or solid recovered fuel need complete this section. "]
[null,"Percentage of total carbon dioxide emissions arising from biogenic waste","%"]
[null,"No. of measurements undertaken","Number"]
[null,"Description of how percentage biogenic carbon dioxide emissions have been measured or calculated.\nSee Note 5",null,null,null,"Note 5: The results from C14 sampling should be used if this is carried out at the plant (either via an installed sampler or from spot samples).  \nOtherwise, as an approximation (and in lieu of any more accurate metrics which may be developed in future), the measured or estimated biogenic fraction by net calorific value (see Note 6) can be assumed to be the same as the biogenic CO2 fraction of the total CO2 emissions from the plant. "]
["Biogenic fraction of waste feedstock (See Note 4)"]
[null,"Yearly average biogenic percentage of the waste by net calorific value (NCV)","%"]
[null,"Description of how biogenic percentage (by NCV) has been calculated or estimated. \nSee Note 6",null,null,null,"Note 6: If C14 sampling is carried out at the plant, the methodology set out in the embedded document entitled \"Renewable Energy Association Energy Content of Fuels - Description of Method\" embedded below can be used to calculate the biogenic percentage by net calorific value. Otherwise, data from waste sampling or BIOMA software can be used; or if none of these are available, an estimated figure with justification or a figure assumed on the basis of up-to-date industry data can be used. "]
[null,"Yearly average biogenic percentage of the waste by mass","%"]
[null,"If waste sampling undertaken, no. of samples used to ascertain average biogenic percentages above","Number"]
[null,"Description of how biogenic percentage (by mass) has been calculated or estimated. \nSee Note 7",null,null,null,"Note 7: Where available, data from waste sampling should be used; otherwise, an estimated figure with justification can be used, or a figure assumed on the basis of up-to-date industry data. "]
[]
[null,"Comments:"]

{"sheet":"Residue Quality ","index":12,"n_rows":36,"n_cols":6,"rows_kept":36,"cut":false,"hidden":false,"merged":[[16,0,17,1],[16,2,17,6],[18,0,19,1],[18,2,19,6],[12,0,12,6],[13,0,13,1],[13,2,13,6],[5,0,6,6],[7,0,8,6],[9,0,10,6],[14,0,15,1],[14,2,15,6],[20,0,21,1],[20,2,21,6],[22,0,23,1],[22,2,23,6],[31,3,31,4],[27,2,28,2],[28,3,28,4],[28,5,28,6],[27,3,27,6],[26,0,26,6],[36,0,41,6],[32,3,32,4],[27,0,28,1],[29,0,29,1],[30,0,30,1],[31,0,31,1],[32,0,32,1],[29,3,29,4],[30,3,30,4],[29,5,29,6],[30,5,30,6],[31,5,31,6],[32,5,32,6],[33,0,33,6],[35,0,35,6]]}
[{"$f":"+'Cover Page'!$B$29","v":"Annual Performance Report 2024"},null,null,null,{"$f":"+'Cover Page'!$B$33","v":"Enviropower Ltd"}]
[]
["Residue Quality Monitoring Requirements"]
[]
["Summary of monitoring undertaken and compliance"]
["Sampling and analysis as per permit requirements."]
[]
[]
[]
[]
[]
[]
["Commentary on any specific events"]
["Date & Event",null,"Description"]
[]
[]
[]
[]
[]
[]
[]
[]
[]
[]
[]
[]
["Residue Quality Monitoring Results"]
["Parameter (unit) ",null,"Limit*","Normal Operation "]
[null,null,null,"Bottom ash  ",null,"APC Residues"]
["Loss on Ignition (average %)",null,"<5%"]
["Total Organic Carbon (average %)",null,"<3%","<1%"]
["No. of Assessments Undertaken",null,"---",4,null,4]
["No. of Hazardous Results",null,"---",0]
["* The permit will specify a limit of either 5% loss on ignition or 3% total organic carbon. If both are measured anyway, please enter the results here, even where the limit does not apply. "]
[]
["Comments :"]

{"sheet":"Water","index":13,"n_rows":23,"n_cols":9,"rows_kept":23,"cut":false,"hidden":false,"merged":[[5,0,6,8],[7,0,8,8],[9,0,10,8],[12,0,12,8],[13,0,13,1],[13,2,13,8],[21,0,21,8],[22,0,22,2],[22,3,22,4],[14,0,15,1],[14,2,15,8],[16,0,17,1],[16,2,17,8],[18,0,19,1],[18,2,19,8],[23,0,23,2],[23,3,23,4],[24,0,24,2],[24,3,24,4],[25,0,25,2],[25,3,25,4],[29,0,29,2],[29,3,29,4],[26,0,26,2],[26,3,26,4],[27,0,27,2],[27,3,27,4],[28,0,28,2],[28,3,28,4]]}
[{"$f":"+'Cover Page'!$B$29","v":"Annual Performance Report 2024"},null,null,null,{"$f":"+'Cover Page'!$B$33","v":"Enviropower Ltd"}]
[]
["Emissions to Water"]
[]
["Summary of monitoring undertaken and compliance"]
["None."]
[]
[]
[]
[]
[]
[]
["Commentary on any specific events"]
["Date & Event",null,"Description"]
[]
[]
[]
[]
[]
[]
[]
["Emissions to Water / Sewer"]
["Parameter",null,null,"Monitoring Frequency",null,"Limit","Target","Max.","Average"]

{"sheet":"Air (CEMS)","index":14,"n_rows":28,"n_cols":14,"rows_kept":28,"cut":false,"hidden":false,"merged":[[14,13,15,13],[14,14,15,14],[14,15,15,15],[12,13,13,15],[26,0,26,12],[28,0,29,12],[13,0,14,0],[5,0,6,12],[7,0,8,12],[10,0,10,12],[11,0,12,0],[11,2,12,2],[11,1,12,1],[11,3,11,4],[11,5,11,6],[11,7,11,8],[11,9,11,10],[11,11,11,12]]}
[{"$f":"+'Cover Page'!$B$29","v":"Annual Performance Report 2024"},null,null,null,null,null,null,null,{"$f":"+'Cover Page'!$B$33","v":"Enviropower Ltd"}]
[]
["Emissions to Air (continously monitored)"]
[null,null,null,null,null,null,null,null,null,null,null,null,null,"Notes:"]
["Summary of monitoring undertaken, standards used and compliance",null,null,null,null,null,null,null,null,null,null,null,null,"Template may require adjustment for any bespoke monitoring requirements of permit"]
["Continuous emissions monitoring as per permit requirements.",null,null,null,null,null,null,null,null,null,null,null,null,"Please check that all default ELV values, reference periods and the stated oxygen reference value match those for your plant, and edit if necessary"]
[null,null,null,null,null,null,null,null,null,null,null,null,null,"Report to 1 decimal place"]
[]
[]
[]
["Results of emissions to air that are continuously monitored (maximum and average values for each line) - oxygen reference 11%"]
["Substance","Reference Period","Emission Limit Value","A1",null,"A2",null,"A3",null,"A4",null,"A5"]
[null,null,null,"Max.","Avg.","Max.","Avg.","Max.","Avg.","Max.","Avg.","Max.","Avg."]
["Oxides of nitrogen","Daily mean","150 mg/m3 ",{"$f":"NOx!O19","v":148},{"$f":"NOx!N19","v":142.31666666666666},{"$f":"NOx!O34","v":148.19999999999999},{"$f":"NOx!N34","v":144.59166666666667}]
[null,"½ hourly mean*","300 mg/m3 *",{"$f":"NOx!M19","v":222.1},{"$f":"NOx!L19","v":142.07499999999999},{"$f":"NOx!M34","v":256.5},{"$f":"NOx!L34","v":144.27500000000001}]
["Particulates","Daily mean","5 mg/m3 ",{"$f":"Particulates!O19","v":3.7},{"$f":"Particulates!N19","v":0.42499999999999999},{"$f":"Particulates!O34","v":2.8},{"$f":"Particulates!N34","v":0.33333333333333331}]
[null,"½ hourly mean*","30 mg/m3 *",{"$f":"Particulates!M19","v":7.5},{"$f":"Particulates!L19","v":0.49166666666666664},{"$f":"Particulates!M34","v":4.7},{"$f":"Particulates!L34","v":0.39166666666666666}]
["Total Organic Carbon ","Daily mean","10 mg/m3 ",{"$f":"TOC!O19","v":5.5},{"$f":"TOC!N19","v":1.25},{"$f":"TOC!O34","v":3.9},{"$f":"TOC!N34","v":1.0666666666666667}]
[null,"½ hourly mean*","20 mg/m3 *",{"$f":"TOC!M19","v":21.9},{"$f":"TOC!L19","v":1.3166666666666667},{"$f":"TOC!M34","v":5.4},{"$f":"TOC!L34","v":1.1083333333333332}]
["Hydrogen chloride ","Daily mean","8 mg/m3 ",{"$f":"HCl!O19","v":8.3000000000000007},{"$f":"HCl!N19","v":6.7333333333333334},{"$f":"HCl!O34","v":14.1},{"$f":"HCl!N34","v":7.583333333333333}]
[null,"½ hourly mean*","60 mg/m3 *",{"$f":"HCl!M19","v":29.1},{"$f":"HCl!L19","v":6.8416666666666677},{"$f":"HCl!M34","v":58},{"$f":"HCl!L34","v":7.7166666666666659}]
["Sulphur dioxide","Daily mean","40 mg/m3 ",{"$f":"'SO2'!O19","v":43.2},{"$f":"'SO2'!N19","v":36.116666666666667},{"$f":"'SO2'!O34","v":40.799999999999997},{"$f":"'SO2'!N34","v":22.750000000000004}]
[null,"½ hourly mean*","200 mg/m3 *",{"$f":"'SO2'!M19","v":164.9},{"$f":"'SO2'!L19","v":36.016666666666666},{"$f":"'SO2'!M34","v":209.9},{"$f":"'SO2'!L34","v":22.991666666666671}]
["Carbon monoxide ","Daily mean","50 mg/m3 ",{"$f":"'CO 95% 10 min'!Q22","v":8.6},{"$f":"'CO 95% 10 min'!P22","v":4.5833333333333339},{"$f":"'CO 95% 10 min'!Q37","v":7},{"$f":"'CO 95% 10 min'!P37","v":5.0750000000000002}]
[null,"95%ile 10-min avg*","150 mg/m3 *",{"$f":"'CO 95% 10 min'!M22","v":8.2166666666666668},{"$f":"'CO 95% 10 min'!N22","v":4.6416666666666675},{"$f":"'CO 95% 10 min'!M37","v":7.583333333333333},{"$f":"'CO 95% 10 min'!N37","v":5.1166666666666663}]
[" Ammonia","Daily mean","15 mg/m3",{"$f":"'NH3'!O19","v":0.3},{"$f":"'NH3'!N19","v":4.1666666666666664E-2},{"$f":"'NH3'!O34","v":0.6},{"$f":"'NH3'!N34","v":1.6666666666666666E-2}]
["* = delete if your plant does not have these limits\n"]
["Comments :"]

{"sheet":"HCl","index":15,"n_rows":79,"n_cols":17,"rows_kept":79,"cut":false,"hidden":false,"merged":[[12,16,15,18],[51,9,63,9],[66,9,78,9],[4,9,4,14],[4,1,4,3],[4,4,4,6],[48,0,51,6],[47,0,47,6],[6,9,18,9],[21,9,33,9],[36,9,48,9],[3,16,7,18],[9,16,11,18],[18,4,18,6]]}
[{"$f":"+'Cover Page'!$B$29","v":"Annual Performance Report 2024"},null,null,null,{"$f":"+'Cover Page'!$B$33","v":"Enviropower Ltd"}]
[]
["Monitoring of Hydrogen Chloride emissions",null,null,"Whole Installation",null,null,"See  Notes in Cell Q3",null,null,{"$f":"+A3","v":"Monitoring of Hydrogen Chloride emissions"},null,null,null,"Per Combustion Line",null,null,"Notes:"]
[null,null,null,null,null,null,null,null,null,null,null,null,null,null,null,null,"User to add logic to complete Whole installation, Table A5:G18. From the data in Per Combustion Line, Table J6:O79, subject to No. of lines installed"]
[{"$f":"+'Cover Page'!C39","v":2024},"1/2 Hourly Reference Periods",null,null,"Daily Reference Periods"]
["mg/Nm3","1/2 hourly HCl ELV","Monthly mean of half-hourly averages","Highest half- hourly average","Daily HCl ELV","Monthly mean of  daily averages","Highest daily average",null,null,{"$f":"+A5","v":2024},"mg/Nm3","Monthly 1/2 hourly mean","Monthly 1/2 hourly maximum","Monthly daily mean","Monthly daily maximum"]
["Jan",60,{"$f":"AVERAGE(L7,L22)","v":7.25},{"$f":"MAX(M7,M22)","v":19.399999999999999},8,{"$f":"AVERAGE(N7,N22)","v":7.1999999999999993},{"$f":"MAX(O7,O22)","v":7.9},null,null,"A1","Jan",6.7,15,6.6,7.9]
["Feb",60,{"$f":"AVERAGE(L8,L23)","v":6.7},{"$f":"MAX(M8,M23)","v":21.3},8,{"$f":"AVERAGE(N8,N23)","v":6.85},{"$f":"MAX(O8,O23)","v":7.9},null,null,null,"Feb",7.7,13.6,7.7,7.9]
["Mar",60,6.1999999999999993,25,8,5.75,7.9,null,null,null,"Mar",4.5999999999999996,25,3.8,7.8,null,"Whole Installation table A5:G18:"]
["Apr",60,7.65,22.8,8,7.6,8.1,null,null,null,"Apr",7.5,15,7.4,8.1,null,"Mean: for 1/2 hourly and daily periods calculate mean of values across all operational combustion lines for the month"]
["May",60,7.65,49.6,8,7.25,7.9,null,null,null,"May",6.7,19.2,6.7,7.8]
["Jun",60,7.75,58,8,7.35,7.8,null,null,null,"Jun",7.3,29.1,7.1,7.8]
["Jul",60,7.1999999999999993,46.2,8,7.15,7.9,null,null,null,"Jul",6.6,15.3,6.5,7.8,null,"Maximum: for 1/2 hourly and daily periods use the highest value across all operational combustion lines for the month"]
["Aug",60,7.6,19.2,8,7.5500000000000007,7.9,null,null,null,"Aug",7.4,13.7,7.4,7.8]
["Sep",60,7.45,26.3,8,7.45,7.9,null,null,null,"Sep",7.4,17.600000000000001,7.4,7.9]
["Oct",60,7.35,24.4,8,7.25,7.9,null,null,null,"Oct",7.1,16.399999999999999,7,7.8]
["Nov",60,7.4499999999999993,53.4,8,7.4,14.1,null,null,null,"Nov",6.7,27,6.7,8.3000000000000007]
["Dec",60,7.1,24.8,8,7.1,7.8,null,null,null,"Dec",6.4,18.8,6.5,7.8]
[null,null,null,null,null,null,null,null,null,null,"Annual",{"$f":"AVERAGE(L7:L18)","v":6.8416666666666677},{"$f":"MAX(M7:M18)","v":29.1},{"$f":"AVERAGE(N7:N18)","v":6.7333333333333334},{"$f":"MAX(O7:O18)","v":8.3000000000000007}]
[]
[null,null,null,null,null,null,null,null,null,{"$f":"+A5","v":2024},"mg/Nm3","Monthly 1/2 hourly mean","Monthly 1/2 hourly maximum","Monthly daily mean","Monthly daily maximum"]
[null,null,null,null,null,null,null,null,null,"A2","Jan",7.8,19.399999999999999,7.8,7.8]
[null,null,null,null,null,null,null,null,null,null,"Feb",5.7,21.3,6,7.9]
[null,null,null,null,null,null,null,null,null,null,"Mar",7.8,21.2,7.7,7.9]
[null,null,null,null,null,null,null,null,null,null,"Apr",7.8,22.8,7.8,7.9]
[null,null,null,null,null,null,null,null,null,null,"May",8.6,49.6,7.8,7.9]
[null,null,null,null,null,null,null,null,null,null,"Jun",8.1999999999999993,58,7.6,7.8]
[null,null,null,null,null,null,null,null,null,null,"Jul",7.8,46.2,7.8,7.9]
[null,null,null,null,null,null,null,null,null,null,"Aug",7.8,19.2,7.7,7.9]
[null,null,null,null,null,null,null,null,null,null,"Sep",7.5,26.3,7.5,7.9]
[null,null,null,null,null,null,null,null,null,null,"Oct",7.6,24.4,7.5,7.9]
[null,null,null,null,null,null,null,null,null,null,"Nov",8.1999999999999993,53.4,8.1,14.1]
[null,null,null,null,null,null,null,null,null,null,"Dec",7.8,24.8,7.7,7.8]
[null,null,null,null,null,null,null,null,null,null,"Annual",{"$f":"AVERAGE(L22:L33)","v":7.7166666666666659},{"$f":"MAX(M22:M33)","v":58},{"$f":"AVERAGE(N22:N33)","v":7.583333333333333},{"$f":"MAX(O22:O33)","v":14.1}]
[]
[null,null,null,null,null,null,null,null,null,{"$f":"+A5","v":2024},"mg/Nm3","Monthly 1/2 hourly mean","Monthly 1/2 hourly maximum","Monthly daily mean","Monthly daily maximum"]
[null,null,null,null,null,null,null,null,null,"A3","Jan"]
[null,null,null,null,null,null,null,null,null,null,"Feb"]
[null,null,null,null,null,null,null,null,null,null,"Mar"]
[null,null,null,null,null,null,null,null,null,null,"Apr"]
[null,null,null,null,null,null,null,null,null,null,"May"]
[null,null,null,null,null,null,null,null,null,null,"Jun"]
[null,null,null,null,null,null,null,null,null,null,"Jul"]
[null,null,null,null,null,null,null,null,null,null,"Aug"]
[null,null,null,null,null,null,null,null,null,null,"Sep"]
[null,null,null,null,null,null,null,null,null,null,"Oct"]
[null,null,null,null,null,null,null,null,null,null,"Nov"]
["Comments :",null,null,null,null,null,null,null,null,null,"Dec"]
[null,null,null,null,null,null,null,null,null,null,"Annual",{"$f":"AVERAGE(L37:L48)","v":{"$error":"#DIV/0!"}},{"$f":"MAX(M37:M48)","v":0},{"$f":"AVERAGE(N37:N48)","v":{"$error":"#DIV/0!"}},{"$f":"MAX(O37:O48)","v":0}]
[]
[null,null,null,null,null,null,null,null,null,{"$f":"+A5","v":2024},"mg/Nm3","Monthly 1/2 hourly mean","Monthly 1/2 hourly maximum","Monthly daily mean","Monthly daily maximum"]
[null,null,null,null,null,null,null,null,null,"A4","Jan"]
[null,null,null,null,null,null,null,null,null,null,"Feb"]
[null,null,null,null,null,null,null,null,null,null,"Mar"]
[null,null,null,null,null,null,null,null,null,null,"Apr"]
[null,null,null,null,null,null,null,null,null,null,"May"]
[null,null,null,null,null,null,null,null,null,null,"Jun"]
[null,null,null,null,null,null,null,null,null,null,"Jul"]
[null,null,null,null,null,null,null,null,null,null,"Aug"]
[null,null,null,null,null,null,null,null,null,null,"Sep"]
[null,null,null,null,null,null,null,null,null,null,"Oct"]
[null,null,null,null,null,null,null,null,null,null,"Nov"]
[null,null,null,null,null,null,null,null,null,null,"Dec"]
[null,null,null,null,null,null,null,null,null,null,"Annual",{"$f":"AVERAGE(L52:L63)","v":{"$error":"#DIV/0!"}},{"$f":"MAX(M52:M63)","v":0},{"$f":"AVERAGE(N52:N63)","v":{"$error":"#DIV/0!"}},{"$f":"MAX(O52:O63)","v":0}]
[]
[null,null,null,null,null,null,null,null,null,{"$f":"+A5","v":2024},"mg/Nm3","Monthly 1/2 hourly mean","Monthly 1/2 hourly maximum","Monthly daily mean","Monthly daily maximum"]
[null,null,null,null,null,null,null,null,null,"A5","Jan"]
[null,null,null,null,null,null,null,null,null,null,"Feb"]
[null,null,null,null,null,null,null,null,null,null,"Mar"]
[null,null,null,null,null,null,null,null,null,null,"Apr"]
[null,null,null,null,null,null,null,null,null,null,"May"]
[null,null,null,null,null,null,null,null,null,null,"Jun"]
[null,null,null,null,null,null,null,null,null,null,"Jul"]
[null,null,null,null,null,null,null,null,null,null,"Aug"]
[null,null,null,null,null,null,null,null,null,null,"Sep"]
[null,null,null,null,null,null,null,null,null,null,"Oct"]
[null,null,null,null,null,null,null,null,null,null,"Nov"]
[null,null,null,null,null,null,null,null,null,null,"Dec"]
[null,null,null,null,null,null,null,null,null,null,"Annual",{"$f":"AVERAGE(L67:L78)","v":{"$error":"#DIV/0!"}},{"$f":"MAX(M67:M78)","v":0},{"$f":"AVERAGE(N67:N78)","v":{"$error":"#DIV/0!"}},{"$f":"MAX(O67:O78)","v":0}]

{"sheet":"SO2","index":16,"n_rows":79,"n_cols":17,"rows_kept":79,"cut":false,"hidden":false,"merged":[[3,16,7,18],[9,16,11,18],[12,16,15,18],[66,9,78,9],[4,1,4,3],[4,4,4,6],[4,9,4,14],[6,9,18,9],[21,9,33,9],[36,9,48,9],[47,0,47,6],[48,0,51,6],[51,9,63,9],[18,4,18,6]]}
[{"$f":"+'Cover Page'!$B$29","v":"Annual Performance Report 2024"},null,null,null,{"$f":"+'Cover Page'!$B$33","v":"Enviropower Ltd"}]
[]
["Monitoring of Sulphur dioxide emissions",null,null,"Whole Installation",null,null,"See  Notes in Cell Q3",null,null,{"$f":"+A3","v":"Monitoring of Sulphur dioxide emissions"},null,null,null,"Per Combustion Line",null,null,"Notes:"]
[null,null,null,null,null,null,null,null,null,null,null,null,null,null,null,null,"User to add logic to complete Whole installation, Table A5:G18. From the data in Per Combustion Line, Table J6:O79, subject to No. of lines installed"]
[{"$f":"+'Cover Page'!C39","v":2024},"1/2 Hourly Reference Periods",null,null,"Daily Reference Periods"]
["mg/Nm3","1/2 hourly SO2 ELV","Monthly mean of half-hourly averages","Highest half- hourly average","Daily SO2 ELV","Monthly mean of  daily averages","Highest daily average",null,null,{"$f":"+A5","v":2024},"mg/Nm3","Monthly 1/2 hourly mean","Monthly 1/2 hourly maximum","Monthly daily mean","Monthly daily maximum"]
["Jan",200,{"$f":"AVERAGE(L7,L22)","v":31.35},{"$f":"MAX(M7,M22)","v":81.099999999999994},40,{"$f":"AVERAGE(N7,N22)","v":31.6},{"$f":"MAX(O7,O22)","v":39.5},null,null,"A1","Jan",37.200000000000003,81.099999999999994,37.5,39.5]
["Feb",200,{"$f":"AVERAGE(L8,L23)","v":33.099999999999994},{"$f":"MAX(M8,M23)","v":209.9},40,{"$f":"AVERAGE(N8,N23)","v":32.299999999999997},{"$f":"MAX(O8,O23)","v":40.799999999999997},null,null,null,"Feb",32.799999999999997,164.9,32.1,39.5]
["Mar",200,29.4,82.6,40,30,39.5,null,null,null,"Mar",35.799999999999997,82.6,36.700000000000003,39.5,null,"Whole Installation table A5:G18:"]
["Apr",200,25.4,118.5,40,25.349999999999998,39.5,null,null,null,"Apr",34.299999999999997,118.5,34.299999999999997,39.5,null,"Mean: for 1/2 hourly and daily periods calculate mean of values across all operational combustion lines for the month"]
["May",200,30.15,123.7,40,29.35,39.6,null,null,null,"May",37.799999999999997,123.7,37.6,39.6]
["Jun",200,25.049999999999997,106.2,40,25.5,39.5,null,null,null,"Jun",32.9,106.2,33.6,39.5]
["Jul",200,29.4,101.1,40,29.299999999999997,39.5,null,null,null,"Jul",36.799999999999997,101.1,36.799999999999997,39.5,null,"Maximum: for 1/2 hourly and daily periods use the highest value across all operational combustion lines for the month"]
["Aug",200,28,74.3,40,27.9,39.5,null,null,null,"Aug",35.6,74.3,35.5,39.5]
["Sep",200,27.5,99.2,40,27.5,39.5,null,null,null,"Sep",34.200000000000003,99.2,34.200000000000003,39.5]
["Oct",200,29.4,98.4,40,29.2,39.5,null,null,null,"Oct",36.5,98.4,36.799999999999997,39.5]
["Nov",200,32.15,141.80000000000001,40,32.200000000000003,43.2,null,null,null,"Nov",39.1,132.9,39.1,43.2]
["Dec",200,33.150000000000006,152.9,40,33,39.5,null,null,null,"Dec",39.200000000000003,152.9,39.200000000000003,39.5]
[null,null,null,null,null,null,null,null,null,null,"Annual",{"$f":"AVERAGE(L7:L18)","v":36.016666666666666},{"$f":"MAX(M7:M18)","v":164.9},{"$f":"AVERAGE(N7:N18)","v":36.116666666666667},{"$f":"MAX(O7:O18)","v":43.2}]
[]
[null,null,null,null,null,null,null,null,null,{"$f":"+A5","v":2024},"mg/Nm3","Monthly 1/2 hourly mean","Monthly 1/2 hourly maximum","Monthly daily mean","Monthly daily maximum"]
[null,null,null,null,null,null,null,null,null,"A2","Jan",25.5,68.2,25.7,37.4]
[null,null,null,null,null,null,null,null,null,null,"Feb",33.4,209.9,32.5,40.799999999999997]
[null,null,null,null,null,null,null,null,null,null,"Mar",23,64.599999999999994,23.3,36.200000000000003]
[null,null,null,null,null,null,null,null,null,null,"Apr",16.5,67.400000000000006,16.399999999999999,22.7]
[null,null,null,null,null,null,null,null,null,null,"May",22.5,91.6,21.1,29.8]
[null,null,null,null,null,null,null,null,null,null,"Jun",17.2,56.1,17.399999999999999,26.7]
[null,null,null,null,null,null,null,null,null,null,"Jul",22,74.900000000000006,21.8,33.200000000000003]
[null,null,null,null,null,null,null,null,null,null,"Aug",20.399999999999999,69,20.3,31.6]
[null,null,null,null,null,null,null,null,null,null,"Sep",20.8,97.9,20.8,35.799999999999997]
[null,null,null,null,null,null,null,null,null,null,"Oct",22.3,86.4,21.6,34.700000000000003]
[null,null,null,null,null,null,null,null,null,null,"Nov",25.2,141.80000000000001,25.3,34.200000000000003]
[null,null,null,null,null,null,null,null,null,null,"Dec",27.1,75.8,26.8,33.1]
[null,null,null,null,null,null,null,null,null,null,"Annual",{"$f":"AVERAGE(L22:L33)","v":22.991666666666671},{"$f":"MAX(M22:M33)","v":209.9},{"$f":"AVERAGE(N22:N33)","v":22.750000000000004},{"$f":"MAX(O22:O33)","v":40.799999999999997}]
[]
[null,null,null,null,null,null,null,null,null,{"$f":"+A5","v":2024},"mg/Nm3","Monthly 1/2 hourly mean","Monthly 1/2 hourly maximum","Monthly daily mean","Monthly daily maximum"]
[null,null,null,null,null,null,null,null,null,"A3","Jan"]
[null,null,null,null,null,null,null,null,null,null,"Feb"]
[null,null,null,null,null,null,null,null,null,null,"Mar"]
[null,null,null,null,null,null,null,null,null,null,"Apr"]
[null,null,null,null,null,null,null,null,null,null,"May"]
[null,null,null,null,null,null,null,null,null,null,"Jun"]
[null,null,null,null,null,null,null,null,null,null,"Jul"]
[null,null,null,null,null,null,null,null,null,null,"Aug"]
[null,null,null,null,null,null,null,null,null,null,"Sep"]
[null,null,null,null,null,null,null,null,null,null,"Oct"]
[null,null,null,null,null,null,null,null,null,null,"Nov"]
["Comments :",null,null,null,null,null,null,null,null,null,"Dec"]
[null,null,null,null,null,null,null,null,null,null,"Annual",{"$f":"AVERAGE(L37:L48)","v":{"$error":"#DIV/0!"}},{"$f":"MAX(M37:M48)","v":0},{"$f":"AVERAGE(N37:N48)","v":{"$error":"#DIV/0!"}},{"$f":"MAX(O37:O48)","v":0}]
[]
[null,null,null,null,null,null,null,null,null,{"$f":"+A5","v":2024},"mg/Nm3","Monthly 1/2 hourly mean","Monthly 1/2 hourly maximum","Monthly daily mean","Monthly daily maximum"]
[null,null,null,null,null,null,null,null,null,"A4","Jan"]
[null,null,null,null,null,null,null,null,null,null,"Feb"]
[null,null,null,null,null,null,null,null,null,null,"Mar"]
[null,null,null,null,null,null,null,null,null,null,"Apr"]
[null,null,null,null,null,null,null,null,null,null,"May"]
[null,null,null,null,null,null,null,null,null,null,"Jun"]
[null,null,null,null,null,null,null,null,null,null,"Jul"]
[null,null,null,null,null,null,null,null,null,null,"Aug"]
[null,null,null,null,null,null,null,null,null,null,"Sep"]
[null,null,null,null,null,null,null,null,null,null,"Oct"]
[null,null,null,null,null,null,null,null,null,null,"Nov"]
[null,null,null,null,null,null,null,null,null,null,"Dec"]
[null,null,null,null,null,null,null,null,null,null,"Annual",{"$f":"AVERAGE(L52:L63)","v":{"$error":"#DIV/0!"}},{"$f":"MAX(M52:M63)","v":0},{"$f":"AVERAGE(N52:N63)","v":{"$error":"#DIV/0!"}},{"$f":"MAX(O52:O63)","v":0}]
[]
[null,null,null,null,null,null,null,null,null,{"$f":"+A5","v":2024},"mg/Nm3","Monthly 1/2 hourly mean","Monthly 1/2 hourly maximum","Monthly daily mean","Monthly daily maximum"]
[null,null,null,null,null,null,null,null,null,"A5","Jan"]
[null,null,null,null,null,null,null,null,null,null,"Feb"]
[null,null,null,null,null,null,null,null,null,null,"Mar"]
[null,null,null,null,null,null,null,null,null,null,"Apr"]
[null,null,null,null,null,null,null,null,null,null,"May"]
[null,null,null,null,null,null,null,null,null,null,"Jun"]
[null,null,null,null,null,null,null,null,null,null,"Jul"]
[null,null,null,null,null,null,null,null,null,null,"Aug"]
[null,null,null,null,null,null,null,null,null,null,"Sep"]
[null,null,null,null,null,null,null,null,null,null,"Oct"]
[null,null,null,null,null,null,null,null,null,null,"Nov"]
[null,null,null,null,null,null,null,null,null,null,"Dec"]
[null,null,null,null,null,null,null,null,null,null,"Annual",{"$f":"AVERAGE(L67:L78)","v":{"$error":"#DIV/0!"}},{"$f":"MAX(M67:M78)","v":0},{"$f":"AVERAGE(N67:N78)","v":{"$error":"#DIV/0!"}},{"$f":"MAX(O67:O78)","v":0}]

{"sheet":"NOx","index":17,"n_rows":79,"n_cols":17,"rows_kept":79,"cut":false,"hidden":false,"merged":[[3,16,7,18],[9,16,11,18],[12,16,15,18],[66,9,78,9],[4,1,4,3],[4,4,4,6],[4,9,4,14],[6,9,18,9],[21,9,33,9],[36,9,48,9],[47,0,47,6],[48,0,51,6],[51,9,63,9],[18,4,18,6]]}
[{"$f":"+'Cover Page'!$B$29","v":"Annual Performance Report 2024"},null,null,null,{"$f":"+'Cover Page'!$B$33","v":"Enviropower Ltd"}]
[]
["Monitoring of Oxides of Nitrogen emissions",null,null,"Whole Installation",null,null,"See  Notes in Cell Q3",null,null,{"$f":"+A3","v":"Monitoring of Oxides of Nitrogen emissions"},null,null,null,"Per Combustion Line",null,null,"Notes:"]
[null,null,null,null,null,null,null,null,null,null,null,null,null,null,null,null,"User to add logic to complete Whole installation, Table A5:G18. From the data in Per Combustion Line, Table J6:O79, subject to No. of lines installed"]
[{"$f":"+'Cover Page'!C39","v":2024},"1/2 Hourly Reference Periods",null,null,"Daily Reference Periods"]
["mg/Nm3","1/2 hourly NOx ELV","Monthly mean of half-hourly averages","Highest half- hourly average","Daily NOx ELV","Monthly mean of  daily averages","Highest daily average",null,null,{"$f":"+A5","v":2024},"mg/Nm3","Monthly 1/2 hourly mean","Monthly 1/2 hourly maximum","Monthly daily mean","Monthly daily maximum"]
["Jan",300,{"$f":"AVERAGE(L7,L22)","v":147.30000000000001},{"$f":"MAX(M7,M22)","v":198.6},150,{"$f":"AVERAGE(N7,N22)","v":147.4},{"$f":"MAX(O7,O22)","v":148.1},null,null,"A1","Jan",147.5,185.9,147.4,148]
["Feb",300,{"$f":"AVERAGE(L8,L23)","v":147.05000000000001},{"$f":"MAX(M8,M23)","v":196.4},150,{"$f":"AVERAGE(N8,N23)","v":147.25},{"$f":"MAX(O8,O23)","v":148},null,null,null,"Feb",146.6,190.6,147,148]
["Mar",300,147.5,180.7,150,147.5,148,null,null,null,"Mar",147.5,180.7,147.5,148,null,"Whole Installation table A5:G18:"]
["Apr",300,146.89999999999998,210.6,150,147,148.19999999999999,null,null,null,"Apr",146.6,195,146.80000000000001,148,null,"Mean: for 1/2 hourly and daily periods calculate mean of values across all operational combustion lines for the month"]
["May",300,131.85,222.1,150,133.44999999999999,148,null,null,null,"May",131.19999999999999,222.1,132.4,147.9]
["Jun",300,139.69999999999999,205.2,150,140.94999999999999,147.9,null,null,null,"Jun",137.4,205.2,138.4,147.9]
["Jul",300,140.30000000000001,256.5,150,140.19999999999999,148.1,null,null,null,"Jul",133.9,190.5,133.80000000000001,147.69999999999999,null,"Maximum: for 1/2 hourly and daily periods use the highest value across all operational combustion lines for the month"]
["Aug",300,140.39999999999998,210.7,150,140.6,148,null,null,null,"Aug",137.1,186.6,137,147.9]
["Sep",300,144.5,219.2,150,144.55000000000001,148.1,null,null,null,"Sep",141.9,203.5,141.9,147.9]
["Oct",300,144.30000000000001,202.8,150,144.44999999999999,148,null,null,null,"Oct",145.1,199,145.6,147.9]
["Nov",300,144.39999999999998,204.4,150,144.39999999999998,147.9,null,null,null,"Nov",145.1,202.1,145.1,147.9]
["Dec",300,143.9,212.2,150,143.69999999999999,148,null,null,null,"Dec",145,199.9,144.9,148]
[null,null,null,null,null,null,null,null,null,null,"Annual",{"$f":"AVERAGE(L7:L18)","v":142.07499999999999},{"$f":"MAX(M7:M18)","v":222.1},{"$f":"AVERAGE(N7:N18)","v":142.31666666666666},{"$f":"MAX(O7:O18)","v":148}]
[]
[null,null,null,null,null,null,null,null,null,{"$f":"+A5","v":2024},"mg/Nm3","Monthly 1/2 hourly mean","Monthly 1/2 hourly maximum","Monthly daily mean","Monthly daily maximum"]
[null,null,null,null,null,null,null,null,null,"A2","Jan",147.1,198.6,147.4,148.1]
[null,null,null,null,null,null,null,null,null,null,"Feb",147.5,196.4,147.5,148]
[null,null,null,null,null,null,null,null,null,null,"Mar",147.5,176.9,147.5,147.9]
[null,null,null,null,null,null,null,null,null,null,"Apr",147.19999999999999,210.6,147.19999999999999,148.19999999999999]
[null,null,null,null,null,null,null,null,null,null,"May",132.5,200.3,134.5,148]
[null,null,null,null,null,null,null,null,null,null,"Jun",142,189.3,143.5,147.9]
[null,null,null,null,null,null,null,null,null,null,"Jul",146.69999999999999,256.5,146.6,148.1]
[null,null,null,null,null,null,null,null,null,null,"Aug",143.69999999999999,210.7,144.19999999999999,148]
[null,null,null,null,null,null,null,null,null,null,"Sep",147.1,219.2,147.19999999999999,148.1]
[null,null,null,null,null,null,null,null,null,null,"Oct",143.5,202.8,143.30000000000001,148]
[null,null,null,null,null,null,null,null,null,null,"Nov",143.69999999999999,204.4,143.69999999999999,147.9]
[null,null,null,null,null,null,null,null,null,null,"Dec",142.80000000000001,212.2,142.5,147.9]
[null,null,null,null,null,null,null,null,null,null,"Annual",{"$f":"AVERAGE(L22:L33)","v":144.27500000000001},{"$f":"MAX(M22:M33)","v":256.5},{"$f":"AVERAGE(N22:N33)","v":144.59166666666667},{"$f":"MAX(O22:O33)","v":148.19999999999999}]
[]
[null,null,null,null,null,null,null,null,null,{"$f":"+A5","v":2024},"mg/Nm3","Monthly 1/2 hourly mean","Monthly 1/2 hourly maximum","Monthly daily mean","Monthly daily maximum"]
[null,null,null,null,null,null,null,null,null,"A3","Jan"]
[null,null,null,null,null,null,null,null,null,null,"Feb"]
[null,null,null,null,null,null,null,null,null,null,"Mar"]
[null,null,null,null,null,null,null,null,null,null,"Apr"]
[null,null,null,null,null,null,null,null,null,null,"May"]
[null,null,null,null,null,null,null,null,null,null,"Jun"]
[null,null,null,null,null,null,null,null,null,null,"Jul"]
[null,null,null,null,null,null,null,null,null,null,"Aug"]
[null,null,null,null,null,null,null,null,null,null,"Sep"]
[null,null,null,null,null,null,null,null,null,null,"Oct"]
[null,null,null,null,null,null,null,null,null,null,"Nov"]
["Comments :",null,null,null,null,null,null,null,null,null,"Dec"]
[null,null,null,null,null,null,null,null,null,null,"Annual",{"$f":"AVERAGE(L37:L48)","v":{"$error":"#DIV/0!"}},{"$f":"MAX(M37:M48)","v":0},{"$f":"AVERAGE(N37:N48)","v":{"$error":"#DIV/0!"}},{"$f":"MAX(O37:O48)","v":0}]
[]
[null,null,null,null,null,null,null,null,null,{"$f":"+A5","v":2024},"mg/Nm3","Monthly 1/2 hourly mean","Monthly 1/2 hourly maximum","Monthly daily mean","Monthly daily maximum"]
[null,null,null,null,null,null,null,null,null,"A4","Jan"]
[null,null,null,null,null,null,null,null,null,null,"Feb"]
[null,null,null,null,null,null,null,null,null,null,"Mar"]
[null,null,null,null,null,null,null,null,null,null,"Apr"]
[null,null,null,null,null,null,null,null,null,null,"May"]
[null,null,null,null,null,null,null,null,null,null,"Jun"]
[null,null,null,null,null,null,null,null,null,null,"Jul"]
[null,null,null,null,null,null,null,null,null,null,"Aug"]
[null,null,null,null,null,null,null,null,null,null,"Sep"]
[null,null,null,null,null,null,null,null,null,null,"Oct"]
[null,null,null,null,null,null,null,null,null,null,"Nov"]
[null,null,null,null,null,null,null,null,null,null,"Dec"]
[null,null,null,null,null,null,null,null,null,null,"Annual",{"$f":"AVERAGE(L52:L63)","v":{"$error":"#DIV/0!"}},{"$f":"MAX(M52:M63)","v":0},{"$f":"AVERAGE(N52:N63)","v":{"$error":"#DIV/0!"}},{"$f":"MAX(O52:O63)","v":0}]
[]
[null,null,null,null,null,null,null,null,null,{"$f":"+A5","v":2024},"mg/Nm3","Monthly 1/2 hourly mean","Monthly 1/2 hourly maximum","Monthly daily mean","Monthly daily maximum"]
[null,null,null,null,null,null,null,null,null,"A5","Jan"]
[null,null,null,null,null,null,null,null,null,null,"Feb"]
[null,null,null,null,null,null,null,null,null,null,"Mar"]
[null,null,null,null,null,null,null,null,null,null,"Apr"]
[null,null,null,null,null,null,null,null,null,null,"May"]
[null,null,null,null,null,null,null,null,null,null,"Jun"]
[null,null,null,null,null,null,null,null,null,null,"Jul"]
[null,null,null,null,null,null,null,null,null,null,"Aug"]
[null,null,null,null,null,null,null,null,null,null,"Sep"]
[null,null,null,null,null,null,null,null,null,null,"Oct"]
[null,null,null,null,null,null,null,null,null,null,"Nov"]
[null,null,null,null,null,null,null,null,null,null,"Dec"]
[null,null,null,null,null,null,null,null,null,null,"Annual",{"$f":"AVERAGE(L67:L78)","v":{"$error":"#DIV/0!"}},{"$f":"MAX(M67:M78)","v":0},{"$f":"AVERAGE(N67:N78)","v":{"$error":"#DIV/0!"}},{"$f":"MAX(O67:O78)","v":0}]

{"sheet":"TOC","index":18,"n_rows":79,"n_cols":17,"rows_kept":79,"cut":false,"hidden":false,"merged":[[3,16,7,18],[9,16,11,18],[12,16,15,18],[66,9,78,9],[4,1,4,3],[4,4,4,6],[4,9,4,14],[6,9,18,9],[21,9,33,9],[36,9,48,9],[47,0,47,6],[48,0,51,6],[51,9,63,9]]}
[{"$f":"+'Cover Page'!$B$29","v":"Annual Performance Report 2024"},null,null,null,{"$f":"+'Cover Page'!$B$33","v":"Enviropower Ltd"}]
[]
["Monitoring of Total organic carbon emissions",null,null,"Whole Installation",null,null,"See  Notes in Cell Q3",null,null,{"$f":"+A3","v":"Monitoring of Total organic carbon emissions"},null,null,null,"Per Combustion Line",null,null,"Notes:"]
[null,null,null,null,null,null,null,null,null,null,null,null,null,null,null,null,"User to add logic to complete Whole installation, Table A5:G18. From the data in Per Combustion Line, Table J6:O79, subject to No. of lines installed"]
[{"$f":"+'Cover Page'!C39","v":2024},"1/2 Hourly Reference Periods",null,null,"Daily Reference Periods"]
["mg/Nm3","1/2 hourly TOC ELV","Monthly mean of half-hourly averages","Highest half- hourly average","Daily TOC ELV","Monthly mean of  daily averages","Highest daily average",null,null,{"$f":"+A5","v":2024},"mg/Nm3","Monthly 1/2 hourly mean","Monthly 1/2 hourly maximum","Monthly daily mean","Monthly daily maximum"]
["Jan",20,{"$f":"AVERAGE(L7,L22)","v":1},{"$f":"MAX(M7,M22)","v":10.1},10,{"$f":"AVERAGE(N7,N22)","v":0.95000000000000007},{"$f":"MAX(O7,O22)","v":1.5},null,null,"A1","Jan",1.2,10.1,1.1000000000000001,1.5]
["Feb",20,{"$f":"AVERAGE(L8,L23)","v":0.75},{"$f":"MAX(M8,M23)","v":3.8},10,{"$f":"AVERAGE(N8,N23)","v":0.70000000000000007},{"$f":"MAX(O8,O23)","v":1.6},null,null,null,"Feb",1.2,3.8,1.1000000000000001,1.6]
["Mar",20,1.4500000000000002,4.5999999999999996,10,1.4,2.2000000000000002,null,null,null,"Mar",1.6,4.5999999999999996,1.5,2.2000000000000002,null,"Whole Installation table A5:G18:"]
["Apr",20,1.1499999999999999,8,10,1.1000000000000001,2.9,null,null,null,"Apr",1.2,8,1.2,2.9,null,"Mean: for 1/2 hourly and daily periods calculate mean of values across all operational combustion lines for the month"]
["May",20,1.05,3.7,10,1.05,2.2000000000000002,null,null,null,"May",1.1000000000000001,3.7,1.1000000000000001,2.1]
["Jun",20,2,11,10,1.8,5.5,null,null,null,"Jun",2.2000000000000002,11,2,5.5]
["Jul",20,1.35,4.2,10,1.35,2.5,null,null,null,"Jul",1.4,4.2,1.4,2.1,null,"Maximum: for 1/2 hourly and daily periods use the highest value across all operational combustion lines for the month"]
["Aug",20,1.1000000000000001,21.9,10,1.1000000000000001,1.9,null,null,null,"Aug",1.1000000000000001,21.9,1.1000000000000001,1.9]
["Sep",20,1.05,4.2,10,1,2.2999999999999998,null,null,null,"Sep",1.1000000000000001,4.0999999999999996,1,2.2999999999999998]
["Oct",20,1.2000000000000002,5.4,10,1.1000000000000001,2.6,null,null,null,"Oct",1.3,4.2,1.2,2.4]
["Nov",20,1.25,4.2,10,1.2000000000000002,2.4,null,null,null,"Nov",1.3,4.2,1.3,2.2999999999999998]
["Dec",20,1.2000000000000002,4.3,10,1.1499999999999999,2.2999999999999998,null,null,null,"Dec",1.1000000000000001,3.9,1,1.7]
[null,null,null,null,null,null,null,null,null,null,"Annual",{"$f":"AVERAGE(L7:L18)","v":1.3166666666666667},{"$f":"MAX(M7:M18)","v":21.9},{"$f":"AVERAGE(N7:N18)","v":1.25},{"$f":"MAX(O7:O18)","v":5.5}]
[]
[null,null,null,null,null,null,null,null,null,{"$f":"+A5","v":2024},"mg/Nm3","Monthly 1/2 hourly mean","Monthly 1/2 hourly maximum","Monthly daily mean","Monthly daily maximum"]
[null,null,null,null,null,null,null,null,null,"A2","Jan",0.8,3,0.8,1.4]
[null,null,null,null,null,null,null,null,null,null,"Feb",0.3,3,0.3,1.1000000000000001]
[null,null,null,null,null,null,null,null,null,null,"Mar",1.3,4.3,1.3,2.1]
[null,null,null,null,null,null,null,null,null,null,"Apr",1.1000000000000001,4.5,1,1.9]
[null,null,null,null,null,null,null,null,null,null,"May",1,3.7,1,2.2000000000000002]
[null,null,null,null,null,null,null,null,null,null,"Jun",1.8,4.9000000000000004,1.6,3.9]
[null,null,null,null,null,null,null,null,null,null,"Jul",1.3,3.7,1.3,2.5]
[null,null,null,null,null,null,null,null,null,null,"Aug",1.1000000000000001,3.5,1.1000000000000001,1.8]
[null,null,null,null,null,null,null,null,null,null,"Sep",1,4.2,1,1.9]
[null,null,null,null,null,null,null,null,null,null,"Oct",1.1000000000000001,5.4,1,2.6]
[null,null,null,null,null,null,null,null,null,null,"Nov",1.2,3.7,1.1000000000000001,2.4]
[null,null,null,null,null,null,null,null,null,null,"Dec",1.3,4.3,1.3,2.2999999999999998]
[null,null,null,null,null,null,null,null,null,null,"Annual",{"$f":"AVERAGE(L22:L33)","v":1.1083333333333332},{"$f":"MAX(M22:M33)","v":5.4},{"$f":"AVERAGE(N22:N33)","v":1.0666666666666667},{"$f":"MAX(O22:O33)","v":3.9}]
[]
[null,null,null,null,null,null,null,null,null,{"$f":"+A5","v":2024},"mg/Nm3","Monthly 1/2 hourly mean","Monthly 1/2 hourly maximum","Monthly daily mean","Monthly daily maximum"]
[null,null,null,null,null,null,null,null,null,"A3","Jan"]
[null,null,null,null,null,null,null,null,null,null,"Feb"]
[null,null,null,null,null,null,null,null,null,null,"Mar"]
[null,null,null,null,null,null,null,null,null,null,"Apr"]
[null,null,null,null,null,null,null,null,null,null,"May"]
[null,null,null,null,null,null,null,null,null,null,"Jun"]
[null,null,null,null,null,null,null,null,null,null,"Jul"]
[null,null,null,null,null,null,null,null,null,null,"Aug"]
[null,null,null,null,null,null,null,null,null,null,"Sep"]
[null,null,null,null,null,null,null,null,null,null,"Oct"]
[null,null,null,null,null,null,null,null,null,null,"Nov"]
["Comments :",null,null,null,null,null,null,null,null,null,"Dec"]
[null,null,null,null,null,null,null,null,null,null,"Annual",{"$f":"AVERAGE(L37:L48)","v":{"$error":"#DIV/0!"}},{"$f":"MAX(M37:M48)","v":0},{"$f":"AVERAGE(N37:N48)","v":{"$error":"#DIV/0!"}},{"$f":"MAX(O37:O48)","v":0}]
[]
[null,null,null,null,null,null,null,null,null,{"$f":"+A5","v":2024},"mg/Nm3","Monthly 1/2 hourly mean","Monthly 1/2 hourly maximum","Monthly daily mean","Monthly daily maximum"]
[null,null,null,null,null,null,null,null,null,"A4","Jan"]
[null,null,null,null,null,null,null,null,null,null,"Feb"]
[null,null,null,null,null,null,null,null,null,null,"Mar"]
[null,null,null,null,null,null,null,null,null,null,"Apr"]
[null,null,null,null,null,null,null,null,null,null,"May"]
[null,null,null,null,null,null,null,null,null,null,"Jun"]
[null,null,null,null,null,null,null,null,null,null,"Jul"]
[null,null,null,null,null,null,null,null,null,null,"Aug"]
[null,null,null,null,null,null,null,null,null,null,"Sep"]
[null,null,null,null,null,null,null,null,null,null,"Oct"]
[null,null,null,null,null,null,null,null,null,null,"Nov"]
[null,null,null,null,null,null,null,null,null,null,"Dec"]
[null,null,null,null,null,null,null,null,null,null,"Annual",{"$f":"AVERAGE(L52:L63)","v":{"$error":"#DIV/0!"}},{"$f":"MAX(M52:M63)","v":0},{"$f":"AVERAGE(N52:N63)","v":{"$error":"#DIV/0!"}},{"$f":"MAX(O52:O63)","v":0}]
[]
[null,null,null,null,null,null,null,null,null,{"$f":"+A5","v":2024},"mg/Nm3","Monthly 1/2 hourly mean","Monthly 1/2 hourly maximum","Monthly daily mean","Monthly daily maximum"]
[null,null,null,null,null,null,null,null,null,"A5","Jan"]
[null,null,null,null,null,null,null,null,null,null,"Feb"]
[null,null,null,null,null,null,null,null,null,null,"Mar"]
[null,null,null,null,null,null,null,null,null,null,"Apr"]
[null,null,null,null,null,null,null,null,null,null,"May"]
[null,null,null,null,null,null,null,null,null,null,"Jun"]
[null,null,null,null,null,null,null,null,null,null,"Jul"]
[null,null,null,null,null,null,null,null,null,null,"Aug"]
[null,null,null,null,null,null,null,null,null,null,"Sep"]
[null,null,null,null,null,null,null,null,null,null,"Oct"]
[null,null,null,null,null,null,null,null,null,null,"Nov"]
[null,null,null,null,null,null,null,null,null,null,"Dec"]
[null,null,null,null,null,null,null,null,null,null,"Annual",{"$f":"AVERAGE(L67:L78)","v":{"$error":"#DIV/0!"}},{"$f":"MAX(M67:M78)","v":0},{"$f":"AVERAGE(N67:N78)","v":{"$error":"#DIV/0!"}},{"$f":"MAX(O67:O78)","v":0}]

{"sheet":"Particulates","index":19,"n_rows":79,"n_cols":17,"rows_kept":79,"cut":false,"hidden":false,"merged":[[3,16,7,18],[9,16,11,18],[12,16,15,18],[66,9,78,9],[4,1,4,3],[4,4,4,6],[4,9,4,14],[6,9,18,9],[21,9,33,9],[36,9,48,9],[47,0,47,6],[48,0,51,6],[51,9,63,9],[18,4,18,6]]}
[{"$f":"+'Cover Page'!$B$29","v":"Annual Performance Report 2024"},null,null,null,{"$f":"+'Cover Page'!$B$33","v":"Enviropower Ltd"}]
[]
["Monitoring of Particulate matter emissions",null,null,"Whole Installation",null,null,"See  Notes in Cell Q3",null,null,{"$f":"+A3","v":"Monitoring of Particulate matter emissions"},null,null,null,"Per Combustion Line",null,null,"Notes:"]
[null,null,null,null,null,null,null,null,null,null,null,null,null,null,null,null,"User to add logic to complete Whole installation, Table A5:G18. From the data in Per Combustion Line, Table J6:O79, subject to No. of lines installed"]
[{"$f":"+'Cover Page'!C39","v":2024},"1/2 Hourly Reference Periods",null,null,"Daily Reference Periods"]
["mg/Nm3","1/2 hourly PM ELV","Monthly mean of half-hourly averages","Highest half- hourly average","Daily PM ELV","Monthly mean of  daily averages","Highest daily average",null,null,{"$f":"+A5","v":2024},"mg/Nm3","Monthly 1/2 hourly mean","Monthly 1/2 hourly maximum","Monthly daily mean","Monthly daily maximum"]
["Jan",30,{"$f":"AVERAGE(L7,L22)","v":0.30000000000000004},{"$f":"MAX(M7,M22)","v":2.5},5,{"$f":"AVERAGE(N7,N22)","v":0.30000000000000004},{"$f":"MAX(O7,O22)","v":1},null,null,"A1","Jan",0.4,2,0.4,0.7]
["Feb",30,{"$f":"AVERAGE(L8,L23)","v":0.35},{"$f":"MAX(M8,M23)","v":1.9},5,{"$f":"AVERAGE(N8,N23)","v":0.35},{"$f":"MAX(O8,O23)","v":0.7},null,null,null,"Feb",0.5,1.9,0.5,0.7]
["Mar",30,0.2,1.6,5,0.1,0.7,null,null,null,"Mar",0.1,1.6,0,0.7,null,"Whole Installation table A5:G18:"]
["Apr",30,0.1,3.1,5,0.1,2.4,null,null,null,"Apr",0.2,3.1,0.2,2.4,null,"Mean: for 1/2 hourly and daily periods calculate mean of values across all operational combustion lines for the month"]
["May",30,0.45,4.0999999999999996,5,0.35,2.9,null,null,null,"May",0.4,4.0999999999999996,0.3,2.9]
["Jun",30,0.44999999999999996,1.4,5,0.35,1,null,null,null,"Jun",0.3,1.4,0.2,0.5]
["Jul",30,0.55000000000000004,3.2,5,0.45,1.7,null,null,null,"Jul",0.5,3.2,0.4,1.7,null,"Maximum: for 1/2 hourly and daily periods use the highest value across all operational combustion lines for the month"]
["Aug",30,0.9,4.4000000000000004,5,0.8,2.8,null,null,null,"Aug",0.9,3.9,0.8,2.2000000000000002]
["Sep",30,1.4,7.5,5,1.4,3.7,null,null,null,"Sep",1.7,7.5,1.7,3.7]
["Oct",30,0.3,6.4,5,0.15,0.8,null,null,null,"Oct",0.5,6.4,0.3,0.8]
["Nov",30,0.05,1.1000000000000001,5,0.05,0.5,null,null,null,"Nov",0.1,1.1000000000000001,0.1,0.5]
["Dec",30,0.25,1.6,5,0.15000000000000002,0.7,null,null,null,"Dec",0.3,1.6,0.2,0.7]
[null,null,null,null,null,null,null,null,null,null,"Annual",{"$f":"AVERAGE(L7:L18)","v":0.49166666666666664},{"$f":"MAX(M7:M18)","v":7.5},{"$f":"AVERAGE(N7:N18)","v":0.42499999999999999},{"$f":"MAX(O7:O18)","v":3.7}]
[]
[null,null,null,null,null,null,null,null,null,{"$f":"+A5","v":2024},"mg/Nm3","Monthly 1/2 hourly mean","Monthly 1/2 hourly maximum","Monthly daily mean","Monthly daily maximum"]
[null,null,null,null,null,null,null,null,null,"A2","Jan",0.2,2.5,0.2,1]
[null,null,null,null,null,null,null,null,null,null,"Feb",0.2,1,0.2,0.4]
[null,null,null,null,null,null,null,null,null,null,"Mar",0.3,1.1000000000000001,0.2,0.4]
[null,null,null,null,null,null,null,null,null,null,"Apr",0,0.4,0,0.1]
[null,null,null,null,null,null,null,null,null,null,"May",0.5,4.0999999999999996,0.4,1.7]
[null,null,null,null,null,null,null,null,null,null,"Jun",0.6,1.4,0.5,1]
[null,null,null,null,null,null,null,null,null,null,"Jul",0.6,2,0.5,0.9]
[null,null,null,null,null,null,null,null,null,null,"Aug",0.9,4.4000000000000004,0.8,2.8]
[null,null,null,null,null,null,null,null,null,null,"Sep",1.1000000000000001,4.7,1.1000000000000001,2.6]
[null,null,null,null,null,null,null,null,null,null,"Oct",0.1,1.8,0,0.6]
[null,null,null,null,null,null,null,null,null,null,"Nov",0,0.2,0,0.1]
[null,null,null,null,null,null,null,null,null,null,"Dec",0.2,0.8,0.1,0.4]
[null,null,null,null,null,null,null,null,null,null,"Annual",{"$f":"AVERAGE(L22:L33)","v":0.39166666666666666},{"$f":"MAX(M22:M33)","v":4.7},{"$f":"AVERAGE(N22:N33)","v":0.33333333333333331},{"$f":"MAX(O22:O33)","v":2.8}]
[]
[null,null,null,null,null,null,null,null,null,{"$f":"+A5","v":2024},"mg/Nm3","Monthly 1/2 hourly mean","Monthly 1/2 hourly maximum","Monthly daily mean","Monthly daily maximum"]
[null,null,null,null,null,null,null,null,null,"A3","Jan"]
[null,null,null,null,null,null,null,null,null,null,"Feb"]
[null,null,null,null,null,null,null,null,null,null,"Mar"]
[null,null,null,null,null,null,null,null,null,null,"Apr"]
[null,null,null,null,null,null,null,null,null,null,"May"]
[null,null,null,null,null,null,null,null,null,null,"Jun"]
[null,null,null,null,null,null,null,null,null,null,"Jul"]
[null,null,null,null,null,null,null,null,null,null,"Aug"]
[null,null,null,null,null,null,null,null,null,null,"Sep"]
[null,null,null,null,null,null,null,null,null,null,"Oct"]
[null,null,null,null,null,null,null,null,null,null,"Nov"]
["Comments :",null,null,null,null,null,null,null,null,null,"Dec"]
[null,null,null,null,null,null,null,null,null,null,"Annual",{"$f":"AVERAGE(L37:L48)","v":{"$error":"#DIV/0!"}},{"$f":"MAX(M37:M48)","v":0},{"$f":"AVERAGE(N37:N48)","v":{"$error":"#DIV/0!"}},{"$f":"MAX(O37:O48)","v":0}]
[]
[null,null,null,null,null,null,null,null,null,{"$f":"+A5","v":2024},"mg/Nm3","Monthly 1/2 hourly mean","Monthly 1/2 hourly maximum","Monthly daily mean","Monthly daily maximum"]
[null,null,null,null,null,null,null,null,null,"A4","Jan"]
[null,null,null,null,null,null,null,null,null,null,"Feb"]
[null,null,null,null,null,null,null,null,null,null,"Mar"]
[null,null,null,null,null,null,null,null,null,null,"Apr"]
[null,null,null,null,null,null,null,null,null,null,"May"]
[null,null,null,null,null,null,null,null,null,null,"Jun"]
[null,null,null,null,null,null,null,null,null,null,"Jul"]
[null,null,null,null,null,null,null,null,null,null,"Aug"]
[null,null,null,null,null,null,null,null,null,null,"Sep"]
[null,null,null,null,null,null,null,null,null,null,"Oct"]
[null,null,null,null,null,null,null,null,null,null,"Nov"]
[null,null,null,null,null,null,null,null,null,null,"Dec"]
[null,null,null,null,null,null,null,null,null,null,"Annual",{"$f":"AVERAGE(L52:L63)","v":{"$error":"#DIV/0!"}},{"$f":"MAX(M52:M63)","v":0},{"$f":"AVERAGE(N52:N63)","v":{"$error":"#DIV/0!"}},{"$f":"MAX(O52:O63)","v":0}]
[]
[null,null,null,null,null,null,null,null,null,{"$f":"+A5","v":2024},"mg/Nm3","Monthly 1/2 hourly mean","Monthly 1/2 hourly maximum","Monthly daily mean","Monthly daily maximum"]
[null,null,null,null,null,null,null,null,null,"A5","Jan"]
[null,null,null,null,null,null,null,null,null,null,"Feb"]
[null,null,null,null,null,null,null,null,null,null,"Mar"]
[null,null,null,null,null,null,null,null,null,null,"Apr"]
[null,null,null,null,null,null,null,null,null,null,"May"]
[null,null,null,null,null,null,null,null,null,null,"Jun"]
[null,null,null,null,null,null,null,null,null,null,"Jul"]
[null,null,null,null,null,null,null,null,null,null,"Aug"]
[null,null,null,null,null,null,null,null,null,null,"Sep"]
[null,null,null,null,null,null,null,null,null,null,"Oct"]
[null,null,null,null,null,null,null,null,null,null,"Nov"]
[null,null,null,null,null,null,null,null,null,null,"Dec"]
[null,null,null,null,null,null,null,null,null,null,"Annual",{"$f":"AVERAGE(L67:L78)","v":{"$error":"#DIV/0!"}},{"$f":"MAX(M67:M78)","v":0},{"$f":"AVERAGE(N67:N78)","v":{"$error":"#DIV/0!"}},{"$f":"MAX(O67:O78)","v":0}]

{"sheet":"CO 0.5 hourly","index":20,"n_rows":82,"n_cols":17,"rows_kept":82,"cut":false,"hidden":false,"merged":[[4,0,5,6],[6,16,10,18],[12,16,14,18],[15,16,18,18],[69,9,81,9],[7,1,7,3],[7,4,7,6],[7,9,7,14],[9,9,21,9],[24,9,36,9],[39,9,51,9],[50,0,50,6],[51,0,54,6],[54,9,66,9]]}
[{"$f":"+'Cover Page'!$B$29","v":"Annual Performance Report 2024"},null,null,null,{"$f":"+'Cover Page'!$B$33","v":"Enviropower Ltd"}]
[]
["Monitoring of Carbon Monoxide (half hourly)",null,null,"Whole Installation",null,null,"See  Notes in Cell Q3",null,null,{"$f":"+A3","v":"Monitoring of Carbon Monoxide (half hourly)"},null,null,null,"Per Combustion Line",null,null,"Notes:"]
[]
["If your plant has no short-term (half-hourly or 10-minute) CO ELVs, please complete this tab (stating \"none\" in the 1/2 hourly CO column) and ignore the CO 95% 10 min tab; otherwise, complete the relevant CO tab for your plant"]
[]
[null,null,null,null,null,null,null,null,null,null,null,null,null,null,null,null,"User to add logic to complete Whole installation, Table A5:G18. From the data in Per Combustion Line, Table J6:O79, subject to No. of lines installed"]
[{"$f":"+'Cover Page'!C39","v":2024},"1/2 Hourly Reference Periods",null,null,"Daily Reference Periods"]
["mg/Nm3","1/2 hourly CO ELV","Monthly mean of half-hourly averages","Highest half- hourly average","Daily CO ELV","Monthly mean of  daily averages","Highest daily average",null,null,{"$f":"+A8","v":2024},"mg/Nm3","Monthly 1/2 hourly mean","Monthly 1/2 hourly maximum","Monthly daily mean","Monthly daily maximum"]
["Jan","ELV or None",null,null,75,null,null,null,null,"A1","Jan"]
["Feb","ELV or None",null,null,{"$f":"+E10","v":75},null,null,null,null,null,"Feb"]
["Mar","ELV or None",null,null,{"$f":"+E11","v":75},null,null,null,null,null,"Mar",null,null,null,null,null,"Whole Installation table A5:G18:"]
["Apr","ELV or None",null,null,75,null,null,null,null,null,"Apr",null,null,null,null,null,"Mean: for 1/2 hourly and daily periods calculate mean of values across all operational combustion lines for the month"]
["May","ELV or None",null,null,75,null,null,null,null,null,"May"]
["Jun","ELV or None",null,null,75,null,null,null,null,null,"Jun"]
["Jul","ELV or None",null,null,75,null,null,null,null,null,"Jul",null,null,null,null,null,"Maximum: for 1/2 hourly and daily periods use the highest value across all operational combustion lines for the month"]
["Aug","ELV or None",null,null,75,null,null,null,null,null,"Aug"]
["Sep","ELV or None",null,null,75,null,null,null,null,null,"Sep"]
["Oct","ELV or None",null,null,75,null,null,null,null,null,"Oct"]
["Nov","ELV or None",null,null,75,null,null,null,null,null,"Nov"]
["Dec","ELV or None",null,null,75,null,null,null,null,null,"Dec"]
[null,null,null,null,null,null,null,null,null,null,"Annual",{"$f":"AVERAGE(L10:L21)","v":{"$error":"#DIV/0!"}},{"$f":"MAX(M10:M21)","v":0},{"$f":"AVERAGE(N10:N21)","v":{"$error":"#DIV/0!"}},{"$f":"MAX(O10:O21)","v":0}]
[]
[null,null,null,null,null,null,null,null,null,{"$f":"+A8","v":2024},"mg/Nm3","Monthly 1/2 hourly mean","Monthly 1/2 hourly maximum","Monthly daily mean","Monthly daily maximum"]
[null,null,null,null,null,null,null,null,null,"A2","Jan"]
[null,null,null,null,null,null,null,null,null,null,"Feb"]
[null,null,null,null,null,null,null,null,null,null,"Mar"]
[null,null,null,null,null,null,null,null,null,null,"Apr"]
[null,null,null,null,null,null,null,null,null,null,"May"]
[null,null,null,null,null,null,null,null,null,null,"Jun"]
[null,null,null,null,null,null,null,null,null,null,"Jul"]
[null,null,null,null,null,null,null,null,null,null,"Aug"]
[null,null,null,null,null,null,null,null,null,null,"Sep"]
[null,null,null,null,null,null,null,null,null,null,"Oct"]
[null,null,null,null,null,null,null,null,null,null,"Nov"]
[null,null,null,null,null,null,null,null,null,null,"Dec"]
[null,null,null,null,null,null,null,null,null,null,"Annual",{"$f":"AVERAGE(L25:L36)","v":{"$error":"#DIV/0!"}},{"$f":"MAX(M25:M36)","v":0},{"$f":"AVERAGE(N25:N36)","v":{"$error":"#DIV/0!"}},{"$f":"MAX(O25:O36)","v":0}]
[]
[null,null,null,null,null,null,null,null,null,{"$f":"+A8","v":2024},"mg/Nm3","Monthly 1/2 hourly mean","Monthly 1/2 hourly maximum","Monthly daily mean","Monthly daily maximum"]
[null,null,null,null,null,null,null,null,null,"A3","Jan"]
[null,null,null,null,null,null,null,null,null,null,"Feb"]
[null,null,null,null,null,null,null,null,null,null,"Mar"]
[null,null,null,null,null,null,null,null,null,null,"Apr"]
[null,null,null,null,null,null,null,null,null,null,"May"]
[null,null,null,null,null,null,null,null,null,null,"Jun"]
[null,null,null,null,null,null,null,null,null,null,"Jul"]
[null,null,null,null,null,null,null,null,null,null,"Aug"]
[null,null,null,null,null,null,null,null,null,null,"Sep"]
[null,null,null,null,null,null,null,null,null,null,"Oct"]
[null,null,null,null,null,null,null,null,null,null,"Nov"]
["Comments :",null,null,null,null,null,null,null,null,null,"Dec"]
[null,null,null,null,null,null,null,null,null,null,"Annual",{"$f":"AVERAGE(L40:L51)","v":{"$error":"#DIV/0!"}},{"$f":"MAX(M40:M51)","v":0},{"$f":"AVERAGE(N40:N51)","v":{"$error":"#DIV/0!"}},{"$f":"MAX(O40:O51)","v":0}]
[]
[null,null,null,null,null,null,null,null,null,{"$f":"+A8","v":2024},"mg/Nm3","Monthly 1/2 hourly mean","Monthly 1/2 hourly maximum","Monthly daily mean","Monthly daily maximum"]
[null,null,null,null,null,null,null,null,null,"A4","Jan"]
[null,null,null,null,null,null,null,null,null,null,"Feb"]
[null,null,null,null,null,null,null,null,null,null,"Mar"]
[null,null,null,null,null,null,null,null,null,null,"Apr"]
[null,null,null,null,null,null,null,null,null,null,"May"]
[null,null,null,null,null,null,null,null,null,null,"Jun"]
[null,null,null,null,null,null,null,null,null,null,"Jul"]
[null,null,null,null,null,null,null,null,null,null,"Aug"]
[null,null,null,null,null,null,null,null,null,null,"Sep"]
[null,null,null,null,null,null,null,null,null,null,"Oct"]
[null,null,null,null,null,null,null,null,null,null,"Nov"]
[null,null,null,null,null,null,null,null,null,null,"Dec"]
[null,null,null,null,null,null,null,null,null,null,"Annual",{"$f":"AVERAGE(L55:L66)","v":{"$error":"#DIV/0!"}},{"$f":"MAX(M55:M66)","v":0},{"$f":"AVERAGE(N55:N66)","v":{"$error":"#DIV/0!"}},{"$f":"MAX(O55:O66)","v":0}]
[]
[null,null,null,null,null,null,null,null,null,{"$f":"+A9","v":"mg/Nm3"},"mg/Nm3","Monthly 1/2 hourly mean","Monthly 1/2 hourly maximum","Monthly daily mean","Monthly daily maximum"]
[null,null,null,null,null,null,null,null,null,"A5","Jan"]
[null,null,null,null,null,null,null,null,null,null,"Feb"]
[null,null,null,null,null,null,null,null,null,null,"Mar"]
[null,null,null,null,null,null,null,null,null,null,"Apr"]
[null,null,null,null,null,null,null,null,null,null,"May"]
[null,null,null,null,null,null,null,null,null,null,"Jun"]
[null,null,null,null,null,null,null,null,null,null,"Jul"]
[null,null,null,null,null,null,null,null,null,null,"Aug"]
[null,null,null,null,null,null,null,null,null,null,"Sep"]
[null,null,null,null,null,null,null,null,null,null,"Oct"]
[null,null,null,null,null,null,null,null,null,null,"Nov"]
[null,null,null,null,null,null,null,null,null,null,"Dec"]
[null,null,null,null,null,null,null,null,null,null,"Annual",{"$f":"AVERAGE(L70:L81)","v":{"$error":"#DIV/0!"}},{"$f":"MAX(M70:M81)","v":0},{"$f":"AVERAGE(N70:N81)","v":{"$error":"#DIV/0!"}},{"$f":"MAX(O70:O81)","v":0}]

{"sheet":"CO 95% 10 min","index":21,"n_rows":82,"n_cols":19,"rows_kept":82,"cut":false,"hidden":false,"merged":[[4,0,5,7],[6,18,10,20],[12,18,14,20],[15,18,18,20],[69,10,81,10],[7,1,7,4],[7,5,7,7],[7,10,7,16],[9,10,21,10],[24,10,36,10],[39,10,51,10],[50,0,50,7],[51,0,54,7],[54,10,66,10]]}
[{"$f":"+'Cover Page'!$B$29","v":"Annual Performance Report 2024"},null,null,null,{"$f":"+'Cover Page'!$B$33","v":"Enviropower Ltd"}]
[]
["Monitoring of Carbon Monoxide (10-minute avg)",null,null,null,"Whole Installation",null,null,"See  Notes in Cell S3",null,{"$f":"+A3","v":"Monitoring of Carbon Monoxide (10-minute avg)"},null,null,null,null,"Per Combustion Line",null,"Notes:",null,"Notes:"]
[]
["If your plant has no short-term (half-hourly or 10-minute) CO ELVs, please ignore this tab and instead complete the CO 0.5 hourly tab; otherwise, please complete the relevant CO tab for your plant"]
[]
[null,null,null,null,null,null,null,null,null,null,null,null,null,null,null,null,null,null,"User to add logic to complete Whole installation, Table A5:H18. From the data in Per Combustion Line, Table K6:Q79, subject to No. of lines installed"]
[{"$f":"+'Cover Page'!C39","v":2024},"10-minute Reference Periods",null,null,null,"Daily Reference Periods"]
["mg/Nm3","95%ile 10-min avg CO ELV","Highest daily 95%ile 10-min average","Monthly mean of 10-min averages","Highest 10-min average","Daily CO ELV","Monthly mean of  daily averages","Highest daily average",null,null,{"$f":"+A8","v":2024},"mg/Nm3","95%ile 10-min avg maximum","Monthly CO 10-min avg mean","10-min avg maximum","Monthly daily mean","Monthly daily maximum"]
["Jan",150,{"$f":"MAX(M10,M25)","v":8.6999999999999993},{"$f":"AVERAGE(N10,N25)","v":5.3000000000000007},{"$f":"MAX(O10,O25)","v":175.7},50,{"$f":"AVERAGE(P10,P25)","v":5.25},{"$f":"MAX(Q10,Q25)","v":7},null,null,"A1","Jan",7.7,4.9000000000000004,175.7,4.9000000000000004,6]
["Feb",150,10.3,5,62.6,{"$f":"+F10","v":50},5,8.3000000000000007,null,null,null,"Feb",10.3,5.4,62.6,5.4,8.3000000000000007]
["Mar",150,7.6,4.25,74.3,{"$f":"+F11","v":50},4.2,6.1,null,null,null,"Mar",6.6,3.6,74.3,3.4,4.9000000000000004,null,"Whole Installation table A5:H18:"]
["Apr",150,7.3,4.4000000000000004,48.9,50,4.3000000000000007,5.8,null,null,null,"Apr",7,3.8,48.9,3.7,5.4,null,"Mean: for 10-min and daily periods use average of all operational combustion lines."]
["May",150,6.7,4.4000000000000004,9,50,4.3,5.6,null,null,null,"May",6.7,4,8.1999999999999993,3.9,4.8]
["Jun",150,7.6,4.9499999999999993,8.6,50,4.8499999999999996,6.5,null,null,null,"Jun",7.6,4.8,8.6,4.7,6.5]
["Jul",150,8.8000000000000007,5,13.6,50,5,6.8,null,null,null,"Jul",8.8000000000000007,5.0999999999999996,13.6,5.0999999999999996,6.8,null,"Maximum: for 10-min and daily periods use the highest of all operational combustion lines in any month."]
["Aug",150,11.8,5.5,168.1,50,5.5,8.6,null,null,null,"Aug",11.8,5.7,168.1,5.7,8.6]
["Sep",150,10.7,5.7,35.6,50,5.7,8.3000000000000007,null,null,null,"Sep",10.7,5.9,35.6,5.9,8.3000000000000007]
["Oct",150,7.7,5.05,55.5,50,4.9000000000000004,6.2,null,null,null,"Oct",7.4,4.5999999999999996,24.8,4.4000000000000004,6]
["Nov",150,7.8,4.75,166.1,50,4.7,6.3,null,null,null,"Nov",7,4.2,166.1,4.2,5.5]
["Dec",150,{"$f":"MAX(M21,M36)","v":7},{"$f":"AVERAGE(N21,N36)","v":4.25},{"$f":"MAX(O21,O36)","v":16.899999999999999},50,{"$f":"AVERAGE(P21,P36)","v":4.25},{"$f":"MAX(Q21,Q36)","v":5.6},null,null,null,"Dec",7,3.7,16.899999999999999,3.7,5.4]
[null,null,null,null,null,null,null,null,null,null,null,"Annual",{"$f":"AVERAGE(M10:M21)","v":8.2166666666666668},{"$f":"AVERAGE(N10:N21)","v":4.6416666666666675},{"$f":"MAX(O10:O21)","v":175.7},{"$f":"AVERAGE(P10:P21)","v":4.5833333333333339},{"$f":"MAX(Q10:Q21)","v":8.6}]
[]
[null,null,null,null,null,null,null,null,null,null,{"$f":"+A8","v":2024},"mg/Nm3","95%ile 10-min avg maximum","Monthly CO 10-min avg mean","10-min avg maximum","Monthly daily mean","Monthly daily maximum"]
[null,null,null,null,null,null,null,null,null,null,"A2","Jan",8.6999999999999993,5.7,9.8000000000000007,5.6,7]
[null,null,null,null,null,null,null,null,null,null,null,"Feb",7.7,4.5999999999999996,8.4,4.5999999999999996,6]
[null,null,null,null,null,null,null,null,null,null,null,"Mar",7.6,4.9000000000000004,8.1,5,6.1]
[null,null,null,null,null,null,null,null,null,null,null,"Apr",7.3,5,9,4.9000000000000004,5.8]
[null,null,null,null,null,null,null,null,null,null,null,"May",6.7,4.8,9,4.7,5.6]
[null,null,null,null,null,null,null,null,null,null,null,"Jun",7.2,5.0999999999999996,8,5,6.4]
[null,null,null,null,null,null,null,null,null,null,null,"Jul",7,4.9000000000000004,9.6,4.9000000000000004,5.6]
[null,null,null,null,null,null,null,null,null,null,null,"Aug",8.5,5.3,38.9,5.3,6.5]
[null,null,null,null,null,null,null,null,null,null,null,"Sep",8,5.5,22.5,5.5,6.4]
[null,null,null,null,null,null,null,null,null,null,null,"Oct",7.7,5.5,55.5,5.4,6.2]
[null,null,null,null,null,null,null,null,null,null,null,"Nov",7.8,5.3,8.6999999999999993,5.2,6.3]
[null,null,null,null,null,null,null,null,null,null,null,"Dec",6.8,4.8,9.1999999999999993,4.8,5.6]
[null,null,null,null,null,null,null,null,null,null,null,"Annual",{"$f":"AVERAGE(M25:M36)","v":7.583333333333333},{"$f":"AVERAGE(N25:N36)","v":5.1166666666666663},{"$f":"MAX(O25:O36)","v":55.5},{"$f":"AVERAGE(P25:P36)","v":5.0750000000000002},{"$f":"MAX(Q25:Q36)","v":7}]
[]
[null,null,null,null,null,null,null,null,null,null,{"$f":"+A8","v":2024},"mg/Nm3","95%ile 10-min avg maximum","Monthly CO 10-min avg mean","10-min avg maximum","Monthly daily mean","Monthly daily maximum"]
[null,null,null,null,null,null,null,null,null,null,"A3","Jan"]
[null,null,null,null,null,null,null,null,null,null,null,"Feb"]
[null,null,null,null,null,null,null,null,null,null,null,"Mar"]
[null,null,null,null,null,null,null,null,null,null,null,"Apr"]
[null,null,null,null,null,null,null,null,null,null,null,"May"]
[null,null,null,null,null,null,null,null,null,null,null,"Jun"]
[null,null,null,null,null,null,null,null,null,null,null,"Jul"]
[null,null,null,null,null,null,null,null,null,null,null,"Aug"]
[null,null,null,null,null,null,null,null,null,null,null,"Sep"]
[null,null,null,null,null,null,null,null,null,null,null,"Oct"]
[null,null,null,null,null,null,null,null,null,null,null,"Nov"]
["Comments :",null,null,null,null,null,null,null,null,null,null,"Dec"]
["Environment Agency explanatory note: The 10-minute average ELV is based on the “95th percentile”. In this case this means that 95% of the 10 minute averages in the relevant 24-hour period (i.e. 137) must be below 150 mg/Nm3, and 5% (i.e. 7) are allowed to be any value above 150 mg/Nm3. Whilst we expect operators to minimise CO emissions at all times, it is perfectly acceptable for the value of the maximum 10-minute average to be above 150 mg/Nm3, provided the 95th percentile ELV has been met for that period. ",null,null,null,null,null,null,null,null,null,null,"Annual",{"$f":"AVERAGE(M40:M51)","v":{"$error":"#DIV/0!"}},null,{"$f":"MAX(O40:O51)","v":0},{"$f":"AVERAGE(P40:P51)","v":{"$error":"#DIV/0!"}},{"$f":"MAX(Q40:Q51)","v":0}]
[]
[null,null,null,null,null,null,null,null,null,null,{"$f":"+A8","v":2024},"mg/Nm3","95%ile 10-min avg maximum","Monthly CO 10-min avg mean","10-min avg maximum","Monthly daily mean","Monthly daily maximum"]
[null,null,null,null,null,null,null,null,null,null,"A4","Jan"]
[null,null,null,null,null,null,null,null,null,null,null,"Feb"]
[null,null,null,null,null,null,null,null,null,null,null,"Mar"]
[null,null,null,null,null,null,null,null,null,null,null,"Apr"]
[null,null,null,null,null,null,null,null,null,null,null,"May"]
[null,null,null,null,null,null,null,null,null,null,null,"Jun"]
[null,null,null,null,null,null,null,null,null,null,null,"Jul"]
[null,null,null,null,null,null,null,null,null,null,null,"Aug"]
[null,null,null,null,null,null,null,null,null,null,null,"Sep"]
[null,null,null,null,null,null,null,null,null,null,null,"Oct"]
[null,null,null,null,null,null,null,null,null,null,null,"Nov"]
[null,null,null,null,null,null,null,null,null,null,null,"Dec"]
[null,null,null,null,null,null,null,null,null,null,null,"Annual",{"$f":"AVERAGE(M55:M66)","v":{"$error":"#DIV/0!"}},null,{"$f":"MAX(O55:O66)","v":0},{"$f":"AVERAGE(P55:P66)","v":{"$error":"#DIV/0!"}},{"$f":"MAX(Q55:Q66)","v":0}]
[]
[null,null,null,null,null,null,null,null,null,null,{"$f":"+A8","v":2024},"mg/Nm3","95%ile 10-min avg maximum","Monthly CO 10-min avg mean","10-min avg maximum","Monthly daily mean","Monthly daily maximum"]
[null,null,null,null,null,null,null,null,null,null,"A5","Jan"]
[null,null,null,null,null,null,null,null,null,null,null,"Feb"]
[null,null,null,null,null,null,null,null,null,null,null,"Mar"]
[null,null,null,null,null,null,null,null,null,null,null,"Apr"]
[null,null,null,null,null,null,null,null,null,null,null,"May"]
[null,null,null,null,null,null,null,null,null,null,null,"Jun"]
[null,null,null,null,null,null,null,null,null,null,null,"Jul"]
[null,null,null,null,null,null,null,null,null,null,null,"Aug"]
[null,null,null,null,null,null,null,null,null,null,null,"Sep"]
[null,null,null,null,null,null,null,null,null,null,null,"Oct"]
[null,null,null,null,null,null,null,null,null,null,null,"Nov"]
[null,null,null,null,null,null,null,null,null,null,null,"Dec"]
[null,null,null,null,null,null,null,null,null,null,null,"Annual",{"$f":"AVERAGE(M70:M81)","v":{"$error":"#DIV/0!"}},null,{"$f":"MAX(O70:O81)","v":0},{"$f":"AVERAGE(P70:P81)","v":{"$error":"#DIV/0!"}},{"$f":"MAX(Q70:Q81)","v":0}]

{"sheet":"NH3","index":22,"n_rows":79,"n_cols":17,"rows_kept":79,"cut":false,"hidden":false,"merged":[[3,16,7,18],[9,16,11,18],[12,16,15,18],[66,9,78,9],[4,1,4,3],[4,4,4,6],[4,9,4,14],[6,9,18,9],[21,9,33,9],[36,9,48,9],[47,0,47,6],[48,0,51,6],[51,9,63,9],[18,4,18,6]]}
[{"$f":"+'Cover Page'!$B$29","v":"Annual Performance Report 2024"},null,null,null,{"$f":"+'Cover Page'!$B$33","v":"Enviropower Ltd"}]
[]
["Monitoring of Ammnonia emissions ",null,null,"Whole Installation",null,null,"See  Notes in Cell Q3",null,null,{"$f":"+A3","v":"Monitoring of Ammnonia emissions "},null,null,null,"Per Combustion Line",null,null,"Notes:"]
[null,null,null,null,null,null,null,null,null,null,null,null,null,null,null,null,"User to add logic to complete Whole installation, Table A5:G18. From the data in Per Combustion Line, Table J6:O79, subject to No. of lines installed"]
[{"$f":"+'Cover Page'!C39","v":2024},"1/2 Hourly Reference Periods",null,null,"Daily Reference Periods"]
["mg/Nm3","1/2 hourly NH3 ELV","Monthly mean of half-hourly averages","Highest half- hourly average","Daily NH3 ELV","Monthly mean of  daily averages","Highest daily average",null,null,{"$f":"+A5","v":2024},"mg/Nm3","Monthly 1/2 hourly mean","Monthly 1/2 hourly maximum","Monthly daily mean","Monthly daily maximum"]
["Jan","None",{"$f":"AVERAGE(L7,L22)","v":0.1},{"$f":"MAX(M7,M22)","v":1.3},15,{"$f":"AVERAGE(N7,N22)","v":0.05},{"$f":"MAX(O7,O22)","v":0.2},null,null,"A1","Jan",0.1,1.3,0.1,0.2]
["Feb",{"$f":"+B7","v":"None"},{"$f":"AVERAGE(L8,L23)","v":0.15000000000000002},{"$f":"MAX(M8,M23)","v":14.2},15,{"$f":"AVERAGE(N8,N23)","v":0.05},{"$f":"MAX(O8,O23)","v":0.3},null,null,null,"Feb",0.1,1.2,0.1,0.2]
["Mar",{"$f":"+B8","v":"None"},0.1,1.3,15,0,0.2,null,null,null,"Mar",0.1,1,0,0.1,null,"Whole Installation table A5:G18:"]
["Apr","None",0.05,1.2,15,0,0.2,null,null,null,"Apr",0.1,1,0,0.2,null,"Mean: for 1/2 hourly and daily periods calculate mean of values across all operational combustion lines for the month"]
["May","None",0.05,1.6,15,0,0.2,null,null,null,"May",0.1,0.7,0,0.2]
["Jun","None",0.05,1.3,15,0,0.2,null,null,null,"Jun",0.1,0.8,0,0.2]
["Jul","None",0.05,1.3,15,0,0.1,null,null,null,"Jul",0.1,1,0,0.1,null,"Maximum: for 1/2 hourly and daily periods use the highest value across all operational combustion lines for the month"]
["Aug","None",0.05,1.2,15,0,0.2,null,null,null,"Aug",0.1,1.1000000000000001,0,0.2]
["Sep","None",0.1,11,15,0.1,0.6,null,null,null,"Sep",0.1,1.4,0.1,0.3]
["Oct","None",0.1,4.2,15,0.1,0.5,null,null,null,"Oct",0.1,0.8,0.1,0.3]
["Nov","None",0.1,1.4,15,0.05,0.3,null,null,null,"Nov",0.1,1.4,0.1,0.3]
["Dec","None",0.1,1.4,15,0,0.2,null,null,null,"Dec",0.1,1.3,0,0.2]
[null,null,null,null,null,null,null,null,null,null,"Annual",{"$f":"AVERAGE(L7:L18)","v":9.9999999999999992E-2},{"$f":"MAX(M7:M18)","v":1.4},{"$f":"AVERAGE(N7:N18)","v":4.1666666666666664E-2},{"$f":"MAX(O7:O18)","v":0.3}]
[]
[null,null,null,null,null,null,null,null,null,{"$f":"+A5","v":2024},"mg/Nm3","Monthly 1/2 hourly mean","Monthly 1/2 hourly maximum","Monthly daily mean","Monthly daily maximum"]
[null,null,null,null,null,null,null,null,null,"A2","Jan",0.1,1,0,0.2]
[null,null,null,null,null,null,null,null,null,null,"Feb",0.2,14.2,0,0.3]
[null,null,null,null,null,null,null,null,null,null,"Mar",0.1,1.3,0,0.2]
[null,null,null,null,null,null,null,null,null,null,"Apr",0,1.2,0,0.1]
[null,null,null,null,null,null,null,null,null,null,"May",0,1.6,0,0.2]
[null,null,null,null,null,null,null,null,null,null,"Jun",0,1.3,0,0.1]
[null,null,null,null,null,null,null,null,null,null,"Jul",0,1.3,0,0.1]
[null,null,null,null,null,null,null,null,null,null,"Aug",0,1.2,0,0.1]
[null,null,null,null,null,null,null,null,null,null,"Sep",0.1,11,0.1,0.6]
[null,null,null,null,null,null,null,null,null,null,"Oct",0.1,4.2,0.1,0.5]
[null,null,null,null,null,null,null,null,null,null,"Nov",0.1,1.3,0,0.2]
[null,null,null,null,null,null,null,null,null,null,"Dec",0.1,1.4,0,0.2]
[null,null,null,null,null,null,null,null,null,null,"Annual",{"$f":"AVERAGE(L22:L33)","v":6.6666666666666666E-2},{"$f":"MAX(M22:M33)","v":14.2},{"$f":"AVERAGE(N22:N33)","v":1.6666666666666666E-2},{"$f":"MAX(O22:O33)","v":0.6}]
[]
[null,null,null,null,null,null,null,null,null,{"$f":"+A5","v":2024},"mg/Nm3","Monthly 1/2 hourly mean","Monthly 1/2 hourly maximum","Monthly daily mean","Monthly daily maximum"]
[null,null,null,null,null,null,null,null,null,"A3","Jan"]
[null,null,null,null,null,null,null,null,null,null,"Feb"]
[null,null,null,null,null,null,null,null,null,null,"Mar"]
[null,null,null,null,null,null,null,null,null,null,"Apr"]
[null,null,null,null,null,null,null,null,null,null,"May"]
[null,null,null,null,null,null,null,null,null,null,"Jun"]
[null,null,null,null,null,null,null,null,null,null,"Jul"]
[null,null,null,null,null,null,null,null,null,null,"Aug"]
[null,null,null,null,null,null,null,null,null,null,"Sep"]
[null,null,null,null,null,null,null,null,null,null,"Oct"]
[null,null,null,null,null,null,null,null,null,null,"Nov"]
["Comments :",null,null,null,null,null,null,null,null,null,"Dec"]
["An indicated ELV value of zero in the table above means that no ammonia limit is/was set in the permit.  ",null,null,null,null,null,null,null,null,null,"Annual",{"$f":"AVERAGE(L37:L48)","v":{"$error":"#DIV/0!"}},{"$f":"MAX(M37:M48)","v":0},{"$f":"AVERAGE(N37:N48)","v":{"$error":"#DIV/0!"}},{"$f":"MAX(O37:O48)","v":0}]
[]
[null,null,null,null,null,null,null,null,null,{"$f":"+A5","v":2024},"mg/Nm3","Monthly 1/2 hourly mean","Monthly 1/2 hourly maximum","Monthly daily mean","Monthly daily maximum"]
[null,null,null,null,null,null,null,null,null,"A4","Jan"]
[null,null,null,null,null,null,null,null,null,null,"Feb"]
[null,null,null,null,null,null,null,null,null,null,"Mar"]
[null,null,null,null,null,null,null,null,null,null,"Apr"]
[null,null,null,null,null,null,null,null,null,null,"May"]
[null,null,null,null,null,null,null,null,null,null,"Jun"]
[null,null,null,null,null,null,null,null,null,null,"Jul"]
[null,null,null,null,null,null,null,null,null,null,"Aug"]
[null,null,null,null,null,null,null,null,null,null,"Sep"]
[null,null,null,null,null,null,null,null,null,null,"Oct"]
[null,null,null,null,null,null,null,null,null,null,"Nov"]
[null,null,null,null,null,null,null,null,null,null,"Dec"]
[null,null,null,null,null,null,null,null,null,null,"Annual",{"$f":"AVERAGE(L52:L63)","v":{"$error":"#DIV/0!"}},{"$f":"MAX(M52:M63)","v":0},{"$f":"AVERAGE(N52:N63)","v":{"$error":"#DIV/0!"}},{"$f":"MAX(O52:O63)","v":0}]
[]
[null,null,null,null,null,null,null,null,null,{"$f":"+A5","v":2024},"mg/Nm3","Monthly 1/2 hourly mean","Monthly 1/2 hourly maximum","Monthly daily mean","Monthly daily maximum"]
[null,null,null,null,null,null,null,null,null,"A5","Jan"]
[null,null,null,null,null,null,null,null,null,null,"Feb"]
[null,null,null,null,null,null,null,null,null,null,"Mar"]
[null,null,null,null,null,null,null,null,null,null,"Apr"]
[null,null,null,null,null,null,null,null,null,null,"May"]
[null,null,null,null,null,null,null,null,null,null,"Jun"]
[null,null,null,null,null,null,null,null,null,null,"Jul"]
[null,null,null,null,null,null,null,null,null,null,"Aug"]
[null,null,null,null,null,null,null,null,null,null,"Sep"]
[null,null,null,null,null,null,null,null,null,null,"Oct"]
[null,null,null,null,null,null,null,null,null,null,"Nov"]
[null,null,null,null,null,null,null,null,null,null,"Dec"]
[null,null,null,null,null,null,null,null,null,null,"Annual",{"$f":"AVERAGE(L67:L78)","v":{"$error":"#DIV/0!"}},{"$f":"MAX(M67:M78)","v":0},{"$f":"AVERAGE(N67:N78)","v":{"$error":"#DIV/0!"}},{"$f":"MAX(O67:O78)","v":0}]

{"sheet":"Template changes log","index":23,"n_rows":14,"n_cols":3,"rows_kept":14,"cut":false,"hidden":false,"merged":[]}
["Log of changes to template (Environment Agency use only)"]
[]
["Date","Description of change","New version number and date"]
["2024-09-23","Air (periodic) tab: corrected symbol for Thallium to Tl"]
["2024-09-23","Air (periodic) tab: removed last year's references to different emission limit values applying from 03/12/23 and updated all relevant ELVs"]
["2024-09-23","Tabs for continuously monitored pollutants (HCl, SO2 etc.): changed terminology in table headings to improve clarity"]
["2024-09-23","Tabs for continuously monitored pollutants (HCl, SO2 etc.): removed last year's references to different emission limit values applying from 03/12/23 and updated all relevant ELVs"]
["2024-09-23","Perf 1 tab: updated formula for water usage to report m3 rather than litres and corrected error with formula copying operator name"]
["2024-09-23","CO2 N2O tab: various changes made to notes to reflect the fact that most plants should now have calibrated CEMS and flow meters + some have C14 samplers and more up to date industry data","Version 24b (for co-incinerators) - 23/09/24"]
["2024-11-08","CO2 N2O tab: Changed the N2O CO2 equivalence factor from 298 to 265 in line with recently updated government greenhouse gas figures: https://www.gov.uk/government/publications/greenhouse-gas-reporting-conversion-factors-2024"]
["2024-11-08","CO2 N2O tab: Added an additional requirement for municipal EfW plants to state the yearly average biogenic percentage of the waste by mass, and reference to a document which sets out a methodology for calculating NCV of waste from the results of C14 sampling."]
["2024-11-08","Permit Compliance tab: Two additional columns added + explanatory notes to the table entitled \"Summary of non-compliances under the permit\" to allow CCS scores to be stated where relevant. "]
["2024-11-08","Residue Quality tab: Note added explaining application of TOC and LOI limits and asking operators to report both metrics where measured. ","Version 24.1b (for co-incinerators) - 08/11/24"]
["2024-11-27","Operational Summary tab: table added on start-ups and shut-downs","Version 24.2b (for co-incinerators) -27/11/24"]